Workbook

Sheet License Agreement
A1: General Motors Creative Common License Agreement
A2: Attribution-ShareAlike 4.0 International
B4: By exercising the Licensed Rights (defined below), You accept and agree to be bound by the terms and conditions of this Creative Commons Attribution-ShareAlike 4.0 International Public License ("Public License"). To the extent this Public License may be interpreted as a contract, You are granted the Licensed Rights in consideration of Your acceptance of these terms and conditions, and the Licensor grants You such rights in consideration of benefits the Licensor receives from making the Licensed Material available under these terms and conditions.
A6: Section 1 – Definitions.
A8: a. | B8: Adapted Material means material subject to Copyright and Similar Rights that is derived from or based upon the Licensed Material and in which the Licensed Material is translated, altered, arranged, transformed, or otherwise modified in a manner requiring permission under the Copyright and Similar Rights held by the Licensor. For purposes of this Public License, where the Licensed Material is a musical work, performance, or sound recording, Adapted Material is always produced where the Licensed Material is synched in timed relation with a moving image.
A9: b. | B9: Adapter's License means the license You apply to Your Copyright and Similar Rights in Your contributions to Adapted Material in accordance with the terms and conditions of this Public License.
A10: c. | B10: BY-SA Compatible License means a license listed at creativecommons.org/compatiblelicenses , approved by Creative Commons as essentially the equivalent of this Public License.
A11: d. | B11: Copyright and Similar Rights means copyright and/or similar rights closely related to copyright including, without limitation, performance, broadcast, sound recording, and Sui Generis Database Rights, without regard to how the rights are labeled or categorized. For purposes of this Public License, the rights specified in Section 2(b)(1)-(2) are not Copyright and Similar Rights.
A12: e. | B12: Effective Technological Measures means those measures that, in the absence of proper authority, may not be circumvented under laws fulfilling obligations under Article 11 of the WIPO Copyright Treaty adopted on December 20, 1996, and/or similar international agreements.
A13: f. | B13: Exceptions and Limitations means fair use, fair dealing, and/or any other exception or limitation to Copyright and Similar Rights that applies to Your use of the Licensed Material.
A14: g. | B14: License Elements means the license attributes listed in the name of a Creative Commons Public License. The License Elements of this Public License are Attribution and ShareAlike.
A15: h | B15: Licensed Material means the artistic or literary work, database, or other material to which the Licensor applied this Public License.
A16: i. | B16: Licensed Rights means the rights granted to You subject to the terms and conditions of this Public License, which are limited to all Copyright and Similar Rights that apply to Your use of the Licensed Material and that the Licensor has authority to license.
A17: j. | B17: Licensor means the individual(s) or entity(ies) granting rights under this Public License.
A18: k. | B18: Share means to provide material to the public by any means or process that requires permission under the Licensed Rights, such as reproduction, public display, public performance, distribution, dissemination, communication, or importation, and to make material available to the public including in ways that members of the public may access the material from a place and at a time individually chosen by them.
A19: l. | B19: Sui Generis Database Rights means rights other than copyright resulting from Directive 96/9/EC of the European Parliament and of the Council of 11 March 1996 on the legal protection of databases, as amended and/or succeeded, as well as other essentially equivalent rights anywhere in the world.
A20: m. | B20: You means the individual or entity exercising the Licensed Rights under this Public License. Your has a corresponding meaning.
A22: Section 2 – Scope.
A24: a. | B24: License grant .
B26: 1 | C26: Subject to the terms and conditions of this Public License, the Licensor hereby grants You a worldwide, royalty-free, non-sublicensable, non-exclusive, irrevocable license to exercise the Licensed
C27: Rights in the Licensed Material to:
C28: A. reproduce and Share the Licensed Material, in whole or in part; and
C29: B. produce, reproduce, and Share Adapted Material.
B30: 2 | C30: Exceptions and Limitations . For the avoidance of doubt, where Exceptions and Limitations apply to Your use, this Public License does not apply, and You do not need to comply with its terms and conditions.
B31: 3 | C31: Term . The term of this Public License is specified in Section 6(a) .
B32: 4 | C32: Media and formats; technical modifications allowed . The Licensor authorizes You to exercise the Licensed Rights in all media and formats whether now known or hereafter created, and to make technical modifications necessary to do so. The Licensor waives and/or agrees not to assert any right or authority to forbid You from making technical modifications necessary to exercise the Licensed Rights, including technical modifications necessary to circumvent Effective Technological Measures. For purposes of this Public License, simply making modifications authorized by this Section 2(a)(4) never produces Adapted Material.
B33: 5 | C33: Downstream recipients .
C34: A. Offer from the Licensor – Licensed Material . Every recipient of the Licensed Material automatically receives an offer from the Licensor to exercise the Licensed Rights under the terms and conditions of this Public License.
C35: B. Additional offer from the Licensor – Adapted Material . Every recipient of Adapted Material from You automatically receives an offer from the Licensor to exercise the Licensed Rights in the Adapted Material under the conditions of the Adapter’s License You apply.
C36: C. No downstream restrictions . You may not offer or impose any additional or different terms or conditions on, or apply any Effective Technological Measures to, the Licensed Material if doing so restricts exercise of the Licensed Rights by any recipient of the Licensed Material.
B37: 6 | C37: No endorsement . Nothing in this Public License constitutes or may be construed as permission to assert or imply that You are, or that Your use of the Licensed Material is, connected with, or sponsored, endorsed, or granted official status by, the Licensor or others designated to receive attribution as provided in Section 3(a)(1)(A)(i) .
A39: b. | B39: Other rights .
B41: 1 | C41: Moral rights, such as the right of integrity, are not licensed under this Public License, nor are publicity, privacy, and/or other similar personality rights; however, to the extent possible, the Licensor waives and/or agrees not to assert any such rights held by the Licensor to the limited extent necessary to allow You to exercise the Licensed Rights, but not otherwise.
B42: 2 | C42: Patent and trademark rights are not licensed under this Public License.
B43: 3 | C43: To the extent possible, the Licensor waives any right to collect royalties from You for the exercise of the Licensed Rights, whether directly or through a collecting society under any voluntary or waivable statutory or compulsory licensing scheme. In all other cases the Licensor expressly reserves any right to collect such royalties.
A45: Section 3 – License Conditions.
A47: Your exercise of the Licensed Rights is expressly made subject to the following conditions.
A49: a. | B49: Attribution.
B51: 1 | C51: If You Share the Licensed Material (including in modified form), You must:
C52: A. retain the following if it is supplied by the Licensor with the Licensed Material:
C53: i. identification of the creator(s) of the Licensed Material and any others designated to receive attribution, in any reasonable manner requested by the Licensor (including by pseudonym if designated);
C54: ii. a copyright notice;
C55: iii. a notice that refers to this Public License;
C56: iv. a notice that refers to the disclaimer of warranties;
C57: v. a URI or hyperlink to the Licensed Material to the extent reasonably practicable;
C58: B. indicate if You modified the Licensed Material and retain an indication of any previous modifications; and
C59: C. indicate the Licensed Material is licensed under this Public License, and include the text of, or the URI or hyperlink to, this Public License.
B60: 2 | C60: You may satisfy the conditions in Section 3(a)(1) in any reasonable manner based on the medium, means, and context in which You Share the Licensed Material. For example, it may be reasonable to satisfy the conditions by providing a URI or hyperlink to a resource that includes the required information.
B61: 3 | C61: If requested by the Licensor, You must remove any of the information required by Section 3(a)(1)(A) to the extent reasonably practicable.
A63: b. | B63: ShareAlike .
B65: In addition to the conditions in Section 3(a) , if You Share Adapted Material You produce, the following conditions also apply.
B66: 1 | C66: The Adapter’s License You apply must be a Creative Commons license with the same License Elements, this version or later, or a BY-SA Compatible License.
B67: 2 | C67: You must include the text of, or the URI or hyperlink to, the Adapter's License You apply. You may satisfy this condition in any reasonable manner based on the medium, means, and context in which You Share Adapted Material.
B68: 3 | C68: You may not offer or impose any additional or different terms or conditions on, or apply any Effective Technological Measures to, Adapted Material that restrict exercise of the rights granted under the Adapter's License You apply.
A70: Section 4 – Sui Generis Database Rights.
A72: Where the Licensed Rights include Sui Generis Database Rights that apply to Your use of the Licensed Material:
B74: a. | C74: for the avoidance of doubt, Section 2(a)(1) grants You the right to extract, reuse, reproduce, and Share all or a substantial portion of the contents of the database;
B75: b. | C75: if You include all or a substantial portion of the database contents in a database in which You have Sui Generis Database Rights, then the database in which You have Sui Generis Database Rights (but not its individual contents) is Adapted Material, including for purposes of Section 3(b) ; and
B76: c. | C76: You must comply with the conditions in Section 3(a) if You Share all or a substantial portion of the contents of the database.
C77: For the avoidance of doubt, this Section 4 supplements and does not replace Your obligations under this Public License where the Licensed Rights include other Copyright and Similar Rights.
A79: Section 5 – Disclaimer of Warranties and Limitation of Liability.
B81: a. | C81: Unless otherwise separately undertaken by the Licensor, to the extent possible, the Licensor offers the Licensed Material as-is and as-available, and makes no representations or warranties of any kind concerning the Licensed Material, whether express, implied, statutory, or other. This includes, without limitation, warranties of title, merchantability, fitness for a particular purpose, non-infringement, absence of latent or other defects, accuracy, or the presence or absence of errors, whether or not known or discoverable. Where disclaimers of warranties are not allowed in full or in part, this disclaimer may not apply to You.
B82: b. | C82: To the extent possible, in no event will the Licensor be liable to You on any legal theory (including, without limitation, negligence) or otherwise for any direct, special, indirect, incidental, consequential, punitive, exemplary, or other losses, costs, expenses, or damages arising out of this Public License or use of the Licensed Material, even if the Licensor has been advised of the possibility of such losses, costs, expenses, or damages. Where a limitation of liability is not allowed in full or in part, this limitation may not apply to You.
B83: c. | C83: The disclaimer of warranties and limitation of liability provided above shall be interpreted in a manner that, to the extent possible, most closely approximates an absolute disclaimer and waiver of all liability.
A85: Section 6 – Term and Termination.
B87: a. | C87: This Public License applies for the term of the Copyright and Similar Rights licensed here. However, if You fail to comply with this Public License, then Your rights under this Public License terminate automatically.
B88: b. | C88: Where Your right to use the Licensed Material has terminated under Section 6(a), it reinstates:
C89: 1. automatically as of the date the violation is cured, provided it is cured within 30 days of Your discovery of the violation; or
C90: 2. upon express reinstatement by the Licensor.
C91: For the avoidance of doubt, this Section 6(b) does not affect any right the Licensor may have to seek remedies for Your violations of this Public License.
B92: c. | C92: For the avoidance of doubt, the Licensor may also offer the Licensed Material under separate terms or conditions or stop distributing the Licensed Material at any time; however, doing so will not terminate this Public License.
B93: d. | C93: Sections 1 , 5 , 6 , 7 , and 8 survive termination of this Public License.
A95: Section 7 – Other Terms and Conditions.
B97: a. | C97: The Licensor shall not be bound by any additional or different terms or conditions communicated by You unless expressly agreed.
B98: b. | C98: Any arrangements, understandings, or agreements regarding the Licensed Material not stated herein are separate from and independent of the terms and conditions of this Public License.
A100: Section 8 – Interpretation.
B102: a. | C102: For the avoidance of doubt, this Public License does not, and shall not be interpreted to, reduce, limit, restrict, or impose conditions on any use of the Licensed Material that could lawfully be made without permission under this Public License.
B103: b. | C103: To the extent possible, if any provision of this Public License is deemed unenforceable, it shall be automatically reformed to the minimum extent necessary to make it enforceable. If the provision cannot be reformed, it shall be severed from this Public License without affecting the enforceability of the remaining terms and conditions.
B104: c. | C104: No term or condition of this Public License will be waived and no failure to comply consented to unless expressly agreed to by the Licensor.
B105: d. | C105: Nothing in this Public License constitutes or may be interpreted as a limitation upon, or waiver of, any privileges and immunities that apply to the Licensor or You, including from the legal processes of any jurisdiction or authority.
C107: © 2022 General Motors

Sheet Index
B2: Worksheet Index | I2: Instructions
I3: 1 | J3: Identify which of the modules are applicable to the specific GM Treasure Maps analysis by selecting "Applicable" or "Not Applicable. This will populate the appropriate tabs for your evaluation. Please note, tabs identified as "Standard" will be kept populated at all times.
B4: Site Data | C4: Applicable/Not Applicable | D4: Module # | F4: Facility Information
B5: Copyright Licensing Agreement | C5: Standard | D5: Worksheet | F5: Start Date of Treasure Maps | G5: <Insert Date>
B6: Site Information | C6: Standard | D6: Worksheet | F6: Organization Name | G6: <Insert Org Name>
B7: Water Balance | C7: Standard | D7: Worksheet | F7: Site Name | G7: <Insert Site Name>
B8: Virtual Energy | C8: Standard | D8: Worksheet | F8: Site Sector | G8: <Insert Site Sector>
F9: Facility type (dropdown) | G9: Industrial
B10: VTH Summary Tabs | F10: Street Address | G10: <Insert Street Address>
B11: Treasure Maps Summary | C11: Standard | D11: Worksheet | F11: City | G11: <Insert City>
F12: State/Province (dropdown) | G12: MI | I12: 2 | J12: Each calculation tab will have standard cells highlighted in light red that will need to be populated with facility specific data. Once completed, calculations will be automatically generated to use as estimates for the action plan summary detail.
B13: Energy | F13: Zip Code | G13: <Insert Zip Code>
B14: Building Envelope Leaks | C14: Applicable | D14: Worksheet | F14: Contact Name | G14: <Insert Contact Name>
B15: Compressed Air Pressure Reduction | C15: Applicable | D15: Worksheet | F15: Contact Email | G15: <Insert Contact Email>
B16: Compressed Air Leaks | C16: Applicable | D16: Worksheet | F16: Number of employees | G16: <Insert # employees>
B17: Energy Star - Vending Machines | C17: Applicable | D17: Worksheet | F17: Site Google Map Image | G17: <Insert Below>
B18: Energy Star - Water Cooler | C18: Applicable | D18: Worksheet
B19: Energy Star - Refrigerator | C19: Applicable | D19: Worksheet | F19: Disclaimer
B20: Energy Star - Coffee Machine | C20: Applicable | D20: Worksheet
B21: Fans | C21: Applicable | D21: Worksheet
B22: Groove Belts | C22: Applicable | D22: Worksheet
B23: HVAC Temperature Setbacks | C23: Applicable | D23: Worksheet | F23: GM is providing this tool to help its suppliers identify potential energy and cost savings. These potential saving are estimates only, and can fluctuate based on energy prices and other factors. By sharing this tool, GM does not assume any liability for any particular energy or cost saving estimates. By using this tool, supplier assumes all liability for the information put into the tool, and for any energy or cost savings estimated by the tool.
B24: LED Lighting | C24: Applicable | D24: Worksheet
B25: Delamping | C25: Applicable | D25: Worksheet
B26: Occupancy Sensor Power Strips - Office Cubicles | C26: Applicable | D26: Worksheet
B27: Occupancy Sensor Power Strips - Workstation | C27: Applicable | D27: Worksheet
B28: Machine Sleep | C28: Applicable | D28: Worksheet
B29: Panel Cooler | C29: Applicable | D29: Worksheet
B30: VFDs | C30: Applicable | D30: Worksheet
B32: Water
B33: Ice Machines | C33: Applicable | D33: Worksheet
B34: Water Leaks | C34: Applicable | D34: Worksheet
B36: Conclusion
B37: Visuals - Leadership Presentation Template | C37: Standard | D37: Worksheet
B38: EPA Treasure Hunt Submission | C38: Standard | D38: Worksheet
B40: Resources
B41: Metrics Conversion Table | C41: Standard | D41: Worksheet
B42: Education Material | C42: Standard | D42: Worksheet | I42: Applicable | K42: Industrial
B43: Emission Factors | C43: Standard | D43: Worksheet | I43: Non Applicable | K43: Commercial
L50: © 2022 General Motors

Sheet Site Information
T2: Scope 2 Factor | U2: Scope 1 Factor
B3: Site Utility Data | T3: =_xlfn.XLOOKUP(Index!$G$12,'E-factors'!B8:B73,'E-factors'!J8:J73,'E-factors'!J60) -> 0.4582690738 | U3: =_xlfn.XLOOKUP(Index!$G$12,'E-factors'!B8:B73,'E-factors'!K8:K73,'E-factors'!K60) -> 0.1961076159
B4: MonthNumber | C4: Production Units (total units/month) | D4: Production Hours (total hours/month) | E4: Electricity (Mwh) | F4: Electricity (USD) | G4: Electricity (USD/MWh) | H4: Natural Gas (Mcf) | I4: Natural Gas (MWh) | J4: Natural Gas (USD) | K4: Natural Gas (USD/MWh) | L4: Water (M3) | M4: Water (USD) | N4: Water (USD/M3) | O4: CDD (F) | P4: HDD (F) | Q4: Intensity - Electricity (MWh)/Unit | R4: Intensity - Natural Gas (MWh)/Unit | S4: Intensity - Water (M3)/Unit | T4: MT CO2e - Electricity | U4: MT CO2e - Natural Gas
B5: 2023-01-01 | G5: =IFERROR(E5/F5,0) -> 0 | I5: =IFERROR((H5*0.29),0) -> 0 | K5: =IFERROR(J5/I5,0) -> 0 | N5: =IFERROR(M5/L5,0) -> 0 | O5: 0 | P5: 0 | Q5: =IFERROR(E5/C5,0) -> 0 | R5: =IFERROR(I5/C5,0) -> 0 | S5: =IFERROR(L5/C5,0) -> 0 | T5: =IFERROR(E5*$T$3,0) -> 0 | U5: =IFERROR(I5*$U$3,0) -> 0
B6: 2023-02-01 | G6: =IFERROR(E6/F6,0) -> 0 | I6: =IFERROR((H6*0.29),0) -> 0 | K6: =IFERROR(J6/I6,0) -> 0 | N6: =IFERROR(M6/L6,0) -> 0 | O6: 0 | P6: 0 | Q6: =IFERROR(E6/C6,0) -> 0 | R6: 0 | S6: =IFERROR(L6/C6,0) -> 0 | T6: =IFERROR(E6*$T$3,0) -> 0 | U6: =IFERROR(I6*$U$3,0) -> 0
B7: 2023-03-01 | G7: 0 | I7: 0 | K7: 0 | N7: 0 | O7: 0 | P7: 0 | Q7: 0 | R7: 0 | S7: 0 | T7: 0 | U7: 0
B8: 2023-04-01 | G8: 0 | I8: 0 | K8: 0 | N8: 0 | O8: 0 | P8: 0 | Q8: 0 | R8: 0 | S8: 0 | T8: 0 | U8: 0
B9: 2023-05-01 | G9: 0 | I9: 0 | K9: 0 | N9: 0 | O9: 0 | P9: 0 | Q9: 0 | R9: 0 | S9: 0 | T9: 0 | U9: 0
B10: 2023-06-01 | G10: 0 | I10: 0 | K10: 0 | N10: 0 | O10: 0 | P10: 0 | Q10: 0 | R10: 0 | S10: 0 | T10: 0 | U10: 0
B11: 2023-07-01 | G11: 0 | I11: 0 | K11: 0 | N11: 0 | O11: 0 | P11: 0 | Q11: 0 | R11: 0 | S11: 0 | T11: 0 | U11: 0
B12: 2023-08-01 | G12: 0 | I12: 0 | K12: 0 | N12: 0 | O12: 0 | P12: 0 | Q12: 0 | R12: 0 | S12: 0 | T12: 0 | U12: 0
B13: 2023-09-01 | G13: 0 | I13: 0 | K13: 0 | N13: 0 | O13: 0 | P13: 0 | Q13: 0 | R13: 0 | S13: 0 | T13: 0 | U13: 0
B14: 2023-10-01 | G14: 0 | I14: 0 | K14: 0 | N14: 0 | O14: 0 | P14: 0 | Q14: 0 | R14: 0 | S14: 0 | T14: 0 | U14: 0
B15: 2023-11-01 | G15: 0 | I15: 0 | K15: 0 | N15: 0 | O15: 0 | P15: 0 | Q15: 0 | R15: 0 | S15: 0 | T15: 0 | U15: 0
B16: 2023-12-01 | G16: 0 | I16: 0 | K16: =IFERROR(J16/I16,0) -> 0 | N16: 0 | O16: 0 | P16: 0 | Q16: 0 | R16: 0 | S16: 0 | T16: 0 | U16: 0
D18: Summary & Cost
E19: 12 Month Total | F19: Unit | G19: Cost | H19: Unit | I19: Intensity | J19: Unit
D20: Production | E20: =SUM(C5:C16) -> 0 | F20: Count/yr
E21: =SUM(D5:D16) -> 0 | F21: Hours/yr
E22: =IFERROR(AVERAGE(D5:D16),0) -> 0 | F22: Hours/month (avg)
D23: Electricity | E23: =SUM(E5:E16) -> 0 | F23: MWh/yr | G23: =IFERROR(SUM(F5:F16)/E23,0) -> 0 | H23: $/Mwh | I23: =IFERROR(E23/$E$14,0) -> 0 | J23: Mwh/unit
D24: Natural Gas | E24: =SUM(I5:I16) -> 0 | F24: MWh/yr | G24: =IFERROR(SUM(J5:J16)/E24,0) -> 0 | H24: $/Mwh | I24: =IFERROR(E24/$E$14,0) -> 0 | J24: Mwh/unit
D25: Water | E25: =SUM(L5:L16) -> 0 | F25: M3/yr | G25: =IFERROR(SUM(M5:M16)/E25,0) -> 0 | H25: $/M3 | I25: =IFERROR(E25/$E$14,) -> 0 | J25: M3/unit
T31: © 2022 General Motors

Sheet Water Balance
C2: Site Water Data
D3: Supply/Input Water (M3) | F3: Process Water (M3) | N3: Water Reuse (M3) | P3: Balance (M3)
B4: Month | C4: Production Units | D4: City | E4: Surface & Ground | F4: Sanitation | G4: Swamp Cooler | H4: Boiler | I4: Cooling Tower | J4: WWTP | K4: Humidification | L4: Fire Protection | M4: Insert Other | N4: Stormwater | O4: WWTP | P4: Process Usage | Q4: Water Supply | R4: Reuse | S4: Variance
B5: ='Site Information'!B5 -> 2023-01-01 | C5: ='Site Information'!C5 -> 0 | D5: ='Site Information'!M5 -> 0 | P5: =IFERROR(SUM(F5:M5),"") -> 0 | Q5: =SUM(D5:E5) -> 0 | R5: =SUM(N5:O5) -> 0 | S5: =IFERROR((Q5-P5)/Q5,"") -> 
B6: ='Site Information'!B6 -> 2023-02-01 | C6: ='Site Information'!C6 -> 0 | D6: ='Site Information'!M6 -> 0 | P6: =IFERROR(SUM(F6:M6),"") -> 0 | Q6: =SUM(D6:E6) -> 0 | R6: =SUM(N6:O6) -> 0 | S6: =IFERROR((Q6-P6)/Q6,"") -> 
B7: ='Site Information'!B7 -> 2023-03-01 | C7: ='Site Information'!C7 -> 0 | D7: ='Site Information'!M7 -> 0 | P7: 0 | Q7: 0 | R7: 0
B8: ='Site Information'!B8 -> 2023-04-01 | C8: ='Site Information'!C8 -> 0 | D8: ='Site Information'!M8 -> 0 | P8: 0 | Q8: 0 | R8: 0
B9: ='Site Information'!B9 -> 2023-05-01 | C9: ='Site Information'!C9 -> 0 | D9: ='Site Information'!M9 -> 0 | P9: 0 | Q9: 0 | R9: 0
B10: ='Site Information'!B10 -> 2023-06-01 | C10: ='Site Information'!C10 -> 0 | D10: ='Site Information'!M10 -> 0 | P10: 0 | Q10: 0 | R10: 0
B11: ='Site Information'!B11 -> 2023-07-01 | C11: ='Site Information'!C11 -> 0 | D11: ='Site Information'!M11 -> 0 | P11: 0 | Q11: 0 | R11: 0
B12: ='Site Information'!B12 -> 2023-08-01 | C12: ='Site Information'!C12 -> 0 | D12: ='Site Information'!M12 -> 0 | P12: 0 | Q12: 0 | R12: 0
B13: ='Site Information'!B13 -> 2023-09-01 | C13: ='Site Information'!C13 -> 0 | D13: ='Site Information'!M13 -> 0 | P13: 0 | Q13: 0 | R13: 0
B14: ='Site Information'!B14 -> 2023-10-01 | C14: ='Site Information'!C14 -> 0 | D14: ='Site Information'!M14 -> 0 | P14: 0 | Q14: 0 | R14: 0
B15: ='Site Information'!B15 -> 2023-11-01 | C15: ='Site Information'!C15 -> 0 | D15: ='Site Information'!M15 -> 0 | P15: 0 | Q15: 0 | R15: 0
B16: ='Site Information'!B16 -> 2023-12-01 | C16: ='Site Information'!C16 -> 0 | D16: ='Site Information'!M16 -> 0 | P16: 0 | Q16: 0 | R16: 0
O17: Total | P17: =SUM(P5:P16) -> 0 | Q17: =SUM(Q5:Q16) -> 0 | R17: =SUM(R5:R16) -> 0 | S17: =IFERROR((Q17-P17)/Q17,"") -> 
Q20: © 2022 General Motors

Sheet Virtual Energy
B2: Data Analysis
B3: Fuel
B4: Month | C4: CDD or HDD | D4: HDD Value | E4: CDD Value | F4: Production | G4: Total Fuel (Mwh)
B5: 2020-09-19 | C5: CDD | D5: =IF(C5="HDD",'Site Information'!$P$5,0) -> 0 | E5: =IF(C5="CDD",'Site Information'!$O$5,0) -> 0 | F5: ='Site Information'!C5 -> 0 | G5: ='Site Information'!I5 -> 0
B6: 2020-10-19 | C6: HDD | D6: =IF(C6="HDD",'Site Information'!$P$6,0) -> 0 | E6: =IF(C6="CDD",'Site Information'!$O$6,0) -> 0 | F6: ='Site Information'!C6 -> 0 | G6: ='Site Information'!I6 -> 0
B7: 2020-11-19 | C7: HDD | D7: =IF(C7="HDD",'Site Information'!P7,0) -> 0 | E7: =IF(C7="CDD",'Site Information'!$O$7,0) -> 0 | F7: ='Site Information'!C7 -> 0 | G7: ='Site Information'!I7 -> 0
B8: 2020-12-19 | C8: HDD | D8: =IF(C8="HDD",'Site Information'!$P$8,0) -> 0 | E8: =IF(C8="CDD",'Site Information'!$O$8,0) -> 0 | F8: ='Site Information'!C8 -> 0 | G8: ='Site Information'!I8 -> 0
B9: 2020-01-20 | C9: HDD | D9: =IF(C9="HDD",'Site Information'!$P$9,0) -> 0 | E9: =IF(C9="CDD",'Site Information'!$O$9,0) -> 0 | F9: ='Site Information'!C9 -> 0 | G9: ='Site Information'!I9 -> 0
B10: 2020-02-20 | C10: HDD | D10: =IF(C10="HDD",'Site Information'!$P$10,0) -> 0 | E10: =IF(C10="CDD",'Site Information'!$O$10,0) -> 0 | F10: ='Site Information'!C10 -> 0 | G10: ='Site Information'!I10 -> 0
B11: 2020-03-20 | C11: HDD | D11: =IF(C11="HDD",'Site Information'!$P$11,0) -> 0 | E11: =IF(C11="CDD",'Site Information'!$O$11,0) -> 0 | F11: ='Site Information'!C11 -> 0 | G11: ='Site Information'!I11 -> 0
B12: 2020-04-20 | C12: CDD | D12: =IF(C12="HDD",'Site Information'!$P$12,0) -> 0 | E12: =IF(C12="CDD",'Site Information'!$O$12,0) -> 0 | F12: ='Site Information'!C12 -> 0 | G12: ='Site Information'!I12 -> 0
B13: 2020-05-20 | C13: CDD | D13: =IF(C13="HDD",'Site Information'!$P$13,0) -> 0 | E13: =IF(C13="CDD",'Site Information'!$O$13,0) -> 0 | F13: ='Site Information'!C13 -> 0 | G13: ='Site Information'!I13 -> 0
B14: 2020-06-20 | C14: CDD | D14: =IF(C14="HDD",'Site Information'!$P$14,0) -> 0 | E14: =IF(C14="CDD",'Site Information'!$O$14,0) -> 0 | F14: ='Site Information'!C14 -> 0 | G14: ='Site Information'!I14 -> 0
B15: 2020-07-20 | C15: CDD | D15: =IF(C15="HDD",'Site Information'!$P$15,0) -> 0 | E15: =IF(C15="CDD",'Site Information'!$O$15,0) -> 0 | F15: ='Site Information'!C15 -> 0 | G15: ='Site Information'!I15 -> 0
B16: 2020-08-20 | C16: CDD | D16: =IF(C16="HDD",'Site Information'!$P$16,0) -> 0 | E16: =IF(C16="CDD",'Site Information'!$O$16,0) -> 0 | F16: ='Site Information'!C16 -> 0 | G16: ='Site Information'!I16 -> 0
A18: HDD
A19: CDD
B21: Electricity
B22: Month | C22: CDD or HDD | D22: HDD Value | E22: CDD Value | F22: Production | G22: Total Electrcity (Mwh)
B23: 2020-09-19 | C23: CDD | D23: =IF(C23="HDD",'Site Information'!$P$5,0) -> 0 | E23: =IF(C23="CDD",'Site Information'!$O$5,0) -> 0 | F23: ='Site Information'!C5 -> 0 | G23: ='Site Information'!G5 -> 0
B24: 2020-10-19 | C24: HDD | D24: =IF(C24="HDD",'Site Information'!$P$6,0) -> 0 | E24: =IF(C24="CDD",'Site Information'!$O$6,0) -> 0 | F24: ='Site Information'!C6 -> 0 | G24: ='Site Information'!G6 -> 0
B25: 2020-11-19 | C25: HDD | D25: =IF(C25="HDD",'Site Information'!Q27,0) -> 0 | E25: =IF(C25="CDD",'Site Information'!$O$7,0) -> 0 | F25: ='Site Information'!C7 -> 0 | G25: ='Site Information'!G7 -> 0
B26: 2020-12-19 | C26: HDD | D26: =IF(C26="HDD",'Site Information'!$P$8,0) -> 0 | E26: =IF(C26="CDD",'Site Information'!$O$8,0) -> 0 | F26: ='Site Information'!C8 -> 0 | G26: ='Site Information'!G8 -> 0
B27: 2020-01-20 | C27: HDD | D27: =IF(C27="HDD",'Site Information'!$P$9,0) -> 0 | E27: =IF(C27="CDD",'Site Information'!$O$9,0) -> 0 | F27: ='Site Information'!C9 -> 0 | G27: ='Site Information'!G9 -> 0
B28: 2020-02-20 | C28: HDD | D28: =IF(C28="HDD",'Site Information'!$P$10,0) -> 0 | E28: =IF(C28="CDD",'Site Information'!$O$10,0) -> 0 | F28: ='Site Information'!C10 -> 0 | G28: ='Site Information'!G10 -> 0
B29: 2020-03-20 | C29: HDD | D29: =IF(C29="HDD",'Site Information'!$P$11,0) -> 0 | E29: =IF(C29="CDD",'Site Information'!$O$11,0) -> 0 | F29: ='Site Information'!C11 -> 0 | G29: ='Site Information'!G11 -> 0
B30: 2020-04-20 | C30: CDD | D30: =IF(C30="HDD",'Site Information'!$P$12,0) -> 0 | E30: =IF(C30="CDD",'Site Information'!$O$12,0) -> 0 | F30: ='Site Information'!C12 -> 0 | G30: ='Site Information'!G12 -> 0
B31: 2020-05-20 | C31: CDD | D31: =IF(C31="HDD",'Site Information'!$P$13,0) -> 0 | E31: =IF(C31="CDD",'Site Information'!$O$13,0) -> 0 | F31: ='Site Information'!C13 -> 0 | G31: ='Site Information'!G13 -> 0
B32: 2020-06-20 | C32: CDD | D32: =IF(C32="HDD",'Site Information'!$P$14,0) -> 0 | E32: =IF(C32="CDD",'Site Information'!$O$14,0) -> 0 | F32: ='Site Information'!C14 -> 0 | G32: ='Site Information'!G14 -> 0
B33: 2020-07-20 | C33: CDD | D33: =IF(C33="HDD",'Site Information'!$P$15,0) -> 0 | E33: =IF(C33="CDD",'Site Information'!$O$15,0) -> 0 | F33: ='Site Information'!C15 -> 0 | G33: ='Site Information'!G15 -> 0
B34: 2020-08-20 | C34: CDD | D34: =IF(C34="HDD",'Site Information'!$P$16,0) -> 0 | E34: =IF(C34="CDD",'Site Information'!$O$16,0) -> 0 | F34: ='Site Information'!C16 -> 0 | G34: ='Site Information'!G16 -> 0
B37: Water
B38: Month | C38: CDD or HDD | D38: HDD Value | E38: CDD Value | F38: Production | G38: Total Water (M3)
B39: 2020-09-19 | C39: CDD | D39: =IF(C39="HDD",'Site Information'!$P$5,0) -> 0 | E39: =IF(C39="CDD",'Site Information'!$O$5,0) -> 0 | F39: ='Site Information'!C5 -> 0 | G39: ='Site Information'!M5 -> 0
B40: 2020-10-19 | C40: HDD | D40: =IF(C40="HDD",'Site Information'!$P$6,0) -> 0 | E40: =IF(C40="CDD",'Site Information'!$O$6,0) -> 0 | F40: ='Site Information'!C6 -> 0 | G40: ='Site Information'!M6 -> 0
B41: 2020-11-19 | C41: HDD | D41: =IF(C41="HDD",'Site Information'!R31,0) -> 0 | E41: =IF(C41="CDD",'Site Information'!$O$7,0) -> 0 | F41: ='Site Information'!C7 -> 0 | G41: ='Site Information'!M7 -> 0
B42: 2020-12-19 | C42: HDD | D42: =IF(C42="HDD",'Site Information'!$P$8,0) -> 0 | E42: =IF(C42="CDD",'Site Information'!$O$8,0) -> 0 | F42: ='Site Information'!C8 -> 0 | G42: ='Site Information'!M8 -> 0
B43: 2020-01-20 | C43: HDD | D43: =IF(C43="HDD",'Site Information'!$P$9,0) -> 0 | E43: =IF(C43="CDD",'Site Information'!$O$9,0) -> 0 | F43: ='Site Information'!C9 -> 0 | G43: ='Site Information'!M9 -> 0
B44: 2020-02-20 | C44: HDD | D44: =IF(C44="HDD",'Site Information'!$P$10,0) -> 0 | E44: =IF(C44="CDD",'Site Information'!$O$10,0) -> 0 | F44: ='Site Information'!C10 -> 0 | G44: ='Site Information'!M10 -> 0
B45: 2020-03-20 | C45: HDD | D45: =IF(C45="HDD",'Site Information'!$P$11,0) -> 0 | E45: =IF(C45="CDD",'Site Information'!$O$11,0) -> 0 | F45: ='Site Information'!C11 -> 0 | G45: ='Site Information'!M11 -> 0
B46: 2020-04-20 | C46: CDD | D46: =IF(C46="HDD",'Site Information'!$P$12,0) -> 0 | E46: =IF(C46="CDD",'Site Information'!$O$12,0) -> 0 | F46: ='Site Information'!C12 -> 0 | G46: ='Site Information'!M12 -> 0
B47: 2020-05-20 | C47: CDD | D47: =IF(C47="HDD",'Site Information'!$P$13,0) -> 0 | E47: =IF(C47="CDD",'Site Information'!$O$13,0) -> 0 | F47: ='Site Information'!C13 -> 0 | G47: ='Site Information'!M13 -> 0
B48: 2020-06-20 | C48: CDD | D48: =IF(C48="HDD",'Site Information'!$P$14,0) -> 0 | E48: =IF(C48="CDD",'Site Information'!$O$14,0) -> 0 | F48: ='Site Information'!C14 -> 0 | G48: ='Site Information'!M14 -> 0
B49: 2020-07-20 | C49: CDD | D49: =IF(C49="HDD",'Site Information'!$P$15,0) -> 0 | E49: =IF(C49="CDD",'Site Information'!$O$15,0) -> 0 | F49: ='Site Information'!C15 -> 0 | G49: ='Site Information'!M15 -> 0
B50: 2020-08-20 | C50: CDD | D50: =IF(C50="HDD",'Site Information'!$P$16,0) -> 0 | E50: =IF(C50="CDD",'Site Information'!$O$16,0) -> 0 | F50: ='Site Information'!C16 -> 0 | G50: ='Site Information'!M16 -> 0
T53: © 2022 General Motors

Sheet Treasure Map
D2: Site Name: | E2: Site Sector:
D3: =Index!G7 -> <Insert Site Name> | E3: =Index!G8 -> <Insert Site Sector>
B4: Summary & Cost | I4: Grand Total Cost (USD) | J4: Grand Total Savings (USD) Per Year | K4: Total Payback Period (Years) | L4: Grand Total Electricity Savings (Mwh) Per Year | M4: Grand Total Water Savings (M3) Per Year | N4: Grand Total Methane/Propane (Mwh) Per Year | O4: Grand Total Scope 2 Emissions Saved (Mt CO2e) Per Year | P4: Grand Total Scope 1 Emissions Saved (Mt CO2e) Per Year
C5: 12 Month Total | D5: Unit | E5: Cost | F5: Unit | G5: Intensity | H5: Unit | I5: =SUBTOTAL(9,I12:I30) -> 0 | J5: =SUBTOTAL(9,J12:J30) -> 0 | K5: =IFERROR(I5/J5,"") ->  | L5: =SUBTOTAL(9,L12:L30) -> 0 | M5: =SUBTOTAL(9,M12:M30) -> 0 | N5: =SUBTOTAL(9,N12:N30) -> 0 | O5: =SUBTOTAL(9,O12:O30) -> 0 | P5: =SUBTOTAL(9,P12:P30) -> 0
B6: ='Site Information'!D20 -> Production | C6: ='Site Information'!E20 -> 0 | D6: ='Site Information'!F20 -> Count/yr
B7: ='Site Information'!D23 -> Electricity | C7: ='Site Information'!E23 -> 0 | D7: ='Site Information'!F23 -> MWh/yr | E7: ='Site Information'!G23 -> 0 | F7: ='Site Information'!H23 -> $/Mwh | G7: ='Site Information'!I23 -> 0 | H7: ='Site Information'!J23 -> Mwh/unit
B8: ='Site Information'!D24 -> Natural Gas | C8: ='Site Information'!E24 -> 0 | D8: ='Site Information'!F24 -> MWh/yr | E8: ='Site Information'!G24 -> 0 | F8: ='Site Information'!H24 -> $/Mwh | G8: ='Site Information'!I24 -> 0 | H8: ='Site Information'!J24 -> Mwh/unit | J8: `
B9: ='Site Information'!D25 -> Water | C9: ='Site Information'!E25 -> 0 | D9: ='Site Information'!F25 -> M3/yr | E9: ='Site Information'!G25 -> 0 | F9: ='Site Information'!H25 -> $/M3 | G9: ='Site Information'!I25 -> 0 | H9: ='Site Information'!J25 -> M3/unit
B11: Ref. No. | C11: Title | D11: Current State | E11: Future State | G11: Equipment | H11: Energy Source | I11: Total Cost (USD) | J11: Total Savings (USD) | K11: Payback (Years) | L11: Electricity Savings (MWh) | M11: Water (M3) | N11: Propane/Methane (MWh) | O11: Scope 2 Emissions Saved (Mt CO2e) | P11: Scope 1 Emissions Saved (Mt CO2e)
B12: 1.1 | C12: Building Envelope Leaks | D12: Door leaks or Dock doors left open during idle truck loading | E12: Fixed leaks and close doors when Trailer is not being processed | G12: Doors | H12: Electricity & Gas | I12: =IFERROR(,0) -> 0 | J12: =IFERROR('Building Envelope Leaks'!$U$41,0) -> 0 | K12: =IFERROR(I12/J12,"-") -> - | L12: =('Building Envelope Leaks'!$V$39) -> 0 | N12: =('Building Envelope Leaks'!$Q$39) -> 0 | O12: =L12*'Site Information'!$T$3 -> 0 | P12: =N12*'Site Information'!$U$3 -> 0
B13: =B12+1 -> 2.1 | C13: Compressed Air Pressure Reduction | D13: Current PSI | E13: Reduction in Psi (full system or by decoupling heavy loaded items) | G13: Compressed Air | H13: Electricity | J13: =IFERROR('Compressed Air'!$L$20,0) -> 0 | K13: - | L13: =('Compressed Air'!$K$20) -> 0 | O13: =L13*'Site Information'!$T$3 -> 0 | P13: =N13*'Site Information'!$U$3 -> 0
B14: =B13+0.1 -> 2.2 | C14: Compressed Air Leaks | D14: Air leaks are > 20% in a system | E14: Reduce air leaks to world class 20% | G14: Compressed Air | H14: Electricity | I14: =IFERROR(,0) -> 0 | J14: =('Compressed Air'!$L$33) -> 0 | K14: =IFERROR(I14/J14,"-") -> - | L14: =('Compressed Air'!$K$33) -> 0 | O14: =L14*'Site Information'!$T$3 -> 0 | P14: =N14*'Site Information'!$U$3 -> 0
B15: 3.1 | C15: Energy Star - Vending Machines | D15: Vending Machine (older models) non-Energy Star | E15: Request and change out dated vending machines to "Energy Star" | G15: Vending | H15: Electricity | I15: 0 | J15: =IFERROR('Energy Star Appliances'!$E$16,0) -> 0 | K15: =IFERROR(I15/J15,"-") -> - | L15: =('Energy Star Appliances'!$E$15) -> 0 | O15: =L15*'Site Information'!$T$3 -> 0 | P15: =N15*'Site Information'!$U$3 -> 0
B16: 3.2 | C16: Energy Star - Water Cooler | D16: Water Cooler (older models) non-Energy Star | E16: Request and change out dated water cooler to "Energy Star" | G16: Water Cooler | H16: Electricity | I16: 0 | J16: =IFERROR(SUM('Energy Star Appliances'!$E$28,'Energy Star Appliances'!$K$28),0) -> 0 | K16: - | L16: =SUM('Energy Star Appliances'!$E$27,'Energy Star Appliances'!$K$27) -> 0 | O16: =L16*'Site Information'!$T$3 -> 0 | P16: =N16*'Site Information'!$U$3 -> 0
B17: 3.3 | C17: Energy Star - Refrigerator | D17: Refrigerator (older models) non-Energy Star | E17: Request and change out dated refrigerator to "Energy Star" | G17: Refrigerator | H17: Electricity | I17: 0 | J17: =SUM('Energy Star Appliances'!$E$40,'Energy Star Appliances'!$K$40) -> 0 | K17: - | L17: =SUM('Energy Star Appliances'!$E$39,'Energy Star Appliances'!$K$39) -> 0 | O17: =L17*'Site Information'!$T$3 -> 0 | P17: =N17*'Site Information'!$U$3 -> 0
B18: 3.4 | C18: Energy Star - Coffee Maker | D18: Coffee Maker (older models) non-Energy Star | E18: Request and change out dated coffee maker to "Energy Star" | G18: Coffee Maker | H18: Electricity | I18: =IFERROR(,0) -> 0 | J18: ='Energy Star Appliances'!$K$51 -> 0 | K18: - | L18: =('Energy Star Appliances'!$K$50) -> 0 | O18: =L18*'Site Information'!$T$3 -> 0 | P18: =N18*'Site Information'!$U$3 -> 0
B19: 4.1 | C19: Fans | D19: No Timer switch | E19: Timing switch installed | G19: Fans | H19: Electricity | I19: =IFERROR(Fans!$H$18,0) -> 0 | J19: =IFERROR(Fans!$J$17,0) -> 0 | K19: - | L19: =(Fans!$I$17) -> 0 | O19: =L19*'Site Information'!$T$3 -> 0 | P19: =N19*'Site Information'!$U$3 -> 0
B20: 5.1 | C20: Groove Belts | D20: Straight belts | E20: Grooved belts | G20: Motors | H20: Electricity | I20: =IFERROR(,0) -> 0 | J20: =IFERROR('Groove Belt'!$I$25,0) -> 0 | K20: - | L20: ='Groove Belt'!$H$25 -> 0 | O20: =L20*'Site Information'!$T$3 -> 0 | P20: =N20*'Site Information'!$U$3 -> 0
B21: 6.1 | C21: HVAC Set back thermostats (CDD) | D21: Current Thermostat temperature | E21: Reduce thermostat temperate by Delta x° | G21: Heating/Cooling | H21: Electricity & Gas | J21: =IFERROR(HVAC!$K$18,"") -> 0 | K21: - | N21: =(HVAC!$J$18) -> 0 | O21: =L21*'Site Information'!$T$3 -> 0 | P21: =N21*'Site Information'!$U$3 -> 0
B22: 7.1 | C22: LED Lighting | D22: Fluorescent lights | E22: LED lights | G22: Lighting | H22: Electricity | I22: 0 | J22: =IFERROR('LED Lighting'!$J$35,0) -> 0 | K22: =IFERROR(I22/J22,"-") -> - | L22: =('LED Lighting'!$I$35) -> 0 | O22: =L22*'Site Information'!$T$3 -> 0 | P22: =N22*'Site Information'!$U$3 -> 0
B23: 8.1 | C23: Delamping | D23: Current light candle | E23: Reduction in candle light lumin on any fixtures that can support | G23: Lighting | H23: Electricity | I23: 0 | J23: =IFERROR(Delamping!$J$25,0) -> 0 | K23: =IFERROR(I23/J23,"-") -> - | L23: =(Delamping!$I$25) -> 0 | O23: =L23*'Site Information'!$T$3 -> 0 | P23: =N23*'Site Information'!$U$3 -> 0
B24: 9.1 | C24: Occupancy Sensors in Office Stations (Power Strips) | D24: Office cubicles have devices on throughout the day | E24: Devices in office spaces turn off when team member is not present | G24: Multi-equip | H24: Electricity | I24: =IFERROR('Power Strips - Occupancy Sensor'!$C$16,0) -> 0 | J24: =IFERROR('Power Strips - Occupancy Sensor'!$K$27,0) -> 0 | K24: - | L24: ='Power Strips - Occupancy Sensor'!$J$27 -> 0 | O24: =L24*'Site Information'!$T$3 -> 0 | P24: =N24*'Site Information'!$U$3 -> 0
B25: 9.2 | C25: Occupancy Sensors in Workstation Cubicles (Power Strips) | D25: Work stations are always on during production hours | E25: Items in work areas turn off when operator is not present | G25: Multi-equip | H25: Electricity | I25: =IFERROR('Power Strips - Occupancy Sensor'!$C$35,0) -> 0 | J25: =IFERROR('Power Strips - Occupancy Sensor'!$K$45,0) -> 0 | K25: - | L25: ='Power Strips - Occupancy Sensor'!$J$45 -> 0 | O25: =L25*'Site Information'!$T$3 -> 0 | P25: =N25*'Site Information'!$U$3 -> 0
B26: 10.1 | C26: Machine Sleep | D26: Machine continuously runs in-between cycles | E26: Items are slept or reduced during inactivity in between cycles | G26: Machinery | H26: Electricity | I26: =IFERROR(,0) -> 0 | J26: =IFERROR('Machine Sleep'!$K$17,0) -> 0 | K26: - | L26: =('Machine Sleep'!$J$17) -> 0 | O26: =L26*'Site Information'!$T$3 -> 0 | P26: =N26*'Site Information'!$U$3 -> 0
B27: 11.1 | C27: Panel Coolers | D27: Current temperature under 35° C or 95° F | E27: Temp set at 35°C/95°F | G27: Panel Coolers | H27: Electricity | J27: =IFERROR('Panel Cooler'!$J$23,0) -> 0 | K27: =IFERROR(I27/J27,"-") -> - | L27: =('Panel Cooler'!$I$23) -> 0 | O27: =L27*'Site Information'!$T$3 -> 0 | P27: =N27*'Site Information'!$U$3 -> 0
B28: 12.1 | C28: VFDs (Variable Frequency Drive) | D28: Motors run at 100% when ever in use | E28: Variable Frequency Drive added to reduce speed during times it is not needed | G28: Motors | H28: Electricity | I28: =IFERROR(,0) -> 0 | J28: =IFERROR(VFDs!N17,0) -> 0 | K28: =IFERROR(I28/J28,"-") -> - | L28: =(VFDs!M17) -> 0 | O28: =L28*'Site Information'!$T$3 -> 0 | P28: =N28*'Site Information'!$U$3 -> 0
B29: 13.1 | C29: Air cooled Ice machines | D29: Water cooled Ice Machine | E29: Air Cooled Ice Machine | G29: Ice Machine | H29: Water | I29: 0 | J29: =IFERROR('Ice Machines'!H17,0) -> 0 | K29: - | M29: =('Ice Machines'!H16) -> 0 | O29: =L29*'Site Information'!$T$3 -> 0 | P29: =N29*'Site Information'!$U$3 -> 0
B30: 14.1 | C30: Water dripping calculations - (i.e. facets, spickets, piping) | D30: water leaking (dripping water) | E30: Eliminate leaks | G30: Water systems | H30: Water | I30: 0 | J30: ='Water Leaks'!J50 -> 0 | K30: - | M30: =('Water Leaks'!I50) -> 0 | O30: =L30*'Site Information'!$T$3 -> 0 | P30: =N30*'Site Information'!$U$3 -> 0
K31: =IFERROR(I31/J31,"") -> 
O34: © 2022 General Motors

Sheet Andon (hidden)
B2: Andon
B4: User Input Instructions
B5: Pink | C5: Please input data ONLY in the pink cells.
B6: Gray | C6: Please DO NOT enter any data in the gray cells. They contain formulas
B7: Green | C7: Final outputs for Treasure Map Tab
B8: Please give best estimate if the exact data is not known
B10: Section 1.1 - Andon Replacement
B11: Items needed to replace 1 andon board Desktop 2 Monitors Production = 8760 Tvs can have sleep modes, when not on they Use .5 watts Monitors and desk top can be shut off during non production hours for additional savings
B12: Exisiting Eqipment | J12: New Equipment
B13: Equipment | C13: Number of Boards | D13: Voltage | E13: Amperage | F13: Production Hrs/Yr | G13: MWh/Yr | H13: Electricity Cost/Yr (USD) | J13: Equipment | K13: Replacement Equipment | L13: Voltage | M13: Amperage | N13: Production Hrs/Yr | O13: Equipment Cost | P13: Total Equipment Cost (USD) | Q13: MWh/Yr | R13: Electricity Cost/Yr (USD)
B14: ADAPTIVE Andon Board | D14: 120 | G14: =(((((D14*E14)*C14)/1000)/1000)*F14) -> 0 | H14: =IFERROR(G14*'Treasure Map'!$E$7,0) -> 0 | J14: Dell Desktop | K14: =(C14*1) -> 0 | L14: 120 | O14: 750 | P14: =(O14*K14) -> 0 | Q14: =(((((L14*M14)*K14)/1000)/1000)*N14) -> 0 | R14: =IFERROR(Q14*'Treasure Map'!$E$7,0) -> 0
J15: 65" LED Vizio Smart Cast TV | K15: =(C14*2) -> 0 | L15: 120 | O15: 700 | P15: =(O15*K15) -> 0 | Q15: =(((((L15*M15)*K15)/1000)/1000)*N15) -> 0 | R15: =IFERROR(Q15*'Treasure Map'!$E$7,0) -> 0
D16: 120 | G16: =(((((D16*E16)*C16)/1000)/1000)*F16) -> 0 | H16: =IFERROR(G16*'Treasure Map'!$E$7,0) -> 0 | L16: 120 | P16: =(500*K16) -> 0 | Q16: 0 | R16: =IFERROR(Q16*'Treasure Map'!$E$7,0) -> 0
D17: 120 | G17: =(((((D17*E17)*C17)/1000)/1000)*F17) -> 0 | H17: =IFERROR(G17*'Treasure Map'!$E$7,0) -> 0 | L17: 120 | P17: 0 | Q17: 0 | R17: =IFERROR(Q17*'Treasure Map'!$E$7,0) -> 0
D18: 120 | G18: 0 | H18: =IFERROR(G18*'Treasure Map'!$E$7,0) -> 0 | O18: Total | P18: =SUM(P14:P17) -> 0 | Q18: =SUM(Q14:Q17) -> 0 | R18: =SUM(R14:R17) -> 0
E19: Total | G19: =SUM(G14:G18) -> 0 | H19: =SUM(H14:H18) -> 0
L21: Equipment | M21: MWh/Yr | N21: Electricity Cost/Yr (USD) | O21: Equipment Cost (USD)
L22: Existing Equipment | M22: =G19 -> 0 | N22: =H19 -> 0
L23: New Equipment | M23: =Q18 -> 0 | N23: =R18 -> 0 | O23: =(P18) -> 0
L24: Total Yearly Savings | M24: =M22-M23 -> 0 | N24: =N22-N23 -> 0 | O24: =O23 -> 0
P26: © 2022 General Motors

Sheet Building Envelope Leaks
C2: Building Envelope Leaks
C4: User Input Instructions
C5: Pink | D5: Please input data ONLY in the pink cells.
C6: Cold Climate Days | D6: This Section will be used to calculate heating cost impacts
C7: Hot Climate Days | D7: This Section will be used to calculate Cooling cost impacts
C8: Gray | D8: Please DO NOT enter any data in the gray cells. They contain formulas
C9: Green | D9: Final outputs for Treasure Map Tab
C10: Please give best estimate if the exact data is not known
C12: Section 1.1 - Door Leaks
C13: Infiltration rates can vary widely, so it’s best to stay conservative. Keeping doors closed is obviously best practice for conditioned spaces. Things that can help save at entry points include reducing setpoints, interlocking heaters with rollup door opening. Etc. Ensuring that windows are closed appropriately during the winter. Typically you want to maintain a slightly positive pressure (0.025 inches WC) in a building to reduce infiltration through windows and doors. Shutting down door/dock heaters during non-production is also best practice – or at least reducing setpoints. Spray-foam insulation (consult your fire insurance) is also a great option for increasing R-value of exterior surfaces.
S18: Electricity Cost | U18: =IFERROR('Treasure Map'!E7,"") -> 0 | V18: $/MWh
S19: Natural Gas Cost | U19: =IFERROR('Treasure Map'!E8,"") -> 0 | V19: $/MWh
C22: Description | D22: Opening | G22: Area | H22: Air Leaving | I22: Hours Open per day | J22: Outside Temperature | L22: Inside Temperature | M22: Heating Degree Days | N22: Delta Winter | O22: Heat Loss | Q22: Heat Cost | R22: Cooling Degree Days | S22: Delta Summer | T22: Cooling Loss | V22: Cooling Cost
D23: Number of Doors/Leaks | E23: Width Ft | F23: Height Ft | G23: Ft2 | H23: Ft3/s | J23: Winter Deg F | K23: Summer Deg F | L23: Deg F | N23: Deg F | O23: BTU/Hr | P23: MWh per Year | Q23: Natural Gas Cost/Yr | S23: Deg F | T23: BTU/Hr | U23: MWh per Year | V23: Electricity Cost/Yr
B24: Example | C24: One Sg Ft | D24: 1 | E24: 1 | F24: 1 | G24: =(E24*F24) -> 1 | H24: =(250/60)*G24 -> 4.166666667 | I24: 1 | J24: 34 | K24: 90 | L24: 75 | M24: 60 | N24: =L24-J24 -> 41 | O24: =H24*60*N24*1.08 -> 11070 | P24: =((((O24*0.00029307103866)*I24)*M24)/1000) -> 0.1946577839 | Q24: =IFERROR(P24*$U$19,0) -> 0 | R24: 90 | S24: =K24-L24 -> 15 | T24: =H24*60*S24*1.08 -> 4050 | U24: =((((T24*0.00029307103866)*I24)*R24)/1000) -> 0.1068243936 | V24: =IFERROR(U24*U$18,0) -> 0
C25: Ped. Door | D25: 2 | E25: 3 | F25: 7 | G25: =E25*F25 -> 21 | H25: =(250/60)*G25 -> 87.5 | I25: 24 | J25: 34 | K25: 90 | L25: 75 | M25: 60 | N25: =L25-J25 -> 41 | O25: =H25*60*N25*1.08 -> 232470 | P25: 98.10752307 | Q25: =IFERROR(P25*$U$19,0) -> 0 | R25: 90 | S25: 15 | T25: 85050 | U25: 53.83949437 | V25: 0
C26: Overhead Dr | D26: 1 | E26: 7 | F26: 12 | G26: =E26*F26 -> 84 | H26: =(250/60)*G26 -> 350 | I26: 8 | J26: 34 | K26: 90 | L26: 75 | M26: 60 | N26: =L26-J26 -> 41 | O26: =H26*60*N26*1.08 -> 929880 | P26: 130.8100308 | Q26: 0 | R26: 90 | S26: 15 | T26: 340200 | U26: 71.78599249 | V26: 0
C27: Entry/Exit Doors | G27: =E27*F27*D27 -> 0 | H27: 0 | N27: =L27-J27 -> 0 | O27: =H27*60*N27*1.08 -> 0 | P27: 0 | Q27: 0 | S27: 0 | T27: 0 | U27: 0 | V27: 0
C28: Dock doors | G28: 0 | H28: 0 | N28: 0 | O28: 0 | P28: 0 | Q28: 0 | S28: 0 | T28: 0 | U28: 0 | V28: 0
C29: Door near electrical shop | G29: 0 | H29: 0 | N29: 0 | O29: 0 | P29: 0 | Q29: 0 | S29: 0 | T29: 0 | U29: 0 | V29: 0
C30: Door Near Frame 8 | G30: 0 | H30: 0 | N30: 0 | O30: 0 | P30: 0 | Q30: 0 | S30: 0 | T30: 0 | U30: 0 | V30: 0
G31: 0 | H31: 0 | N31: 0 | O31: 0 | P31: 0 | Q31: 0 | S31: 0 | T31: 0 | U31: 0 | V31: 0
G32: 0 | H32: 0 | N32: 0 | O32: 0 | P32: 0 | Q32: 0 | S32: 0 | T32: 0 | U32: 0 | V32: 0
G33: 0 | H33: 0 | N33: 0 | O33: 0 | P33: 0 | Q33: 0 | S33: 0 | T33: 0 | U33: 0 | V33: 0
G34: 0 | H34: 0 | N34: 0 | O34: 0 | P34: 0 | Q34: 0 | S34: 0 | T34: 0 | U34: 0 | V34: 0
G35: 0 | H35: 0 | N35: 0 | O35: 0 | P35: 0 | Q35: 0 | S35: 0 | T35: 0 | U35: 0 | V35: 0
G36: 0 | H36: 0 | N36: 0 | O36: 0 | P36: 0 | Q36: 0 | S36: 0 | T36: 0 | U36: 0 | V36: 0
G37: 0 | H37: 0 | N37: 0 | O37: 0 | P37: 0 | Q37: 0 | S37: 0 | T37: 0 | U37: 0 | V37: 0
G38: 0 | H38: 0 | N38: 0 | O38: 0 | P38: 0 | Q38: 0 | S38: 0 | T38: 0 | U38: 0 | V38: 0
P39: Total Annual MWh (Gas) | Q39: =SUM(P27:P38) -> 0 | U39: Total Annual MWh (Electricity) | V39: =SUM(U27:U38) -> 0
P40: Total Savings Per Year | Q40: =SUM(Q27:Q38) -> 0 | U40: Total Savings Per Year | V40: =SUM(V27:V38) -> 0
R41: Total Savings (Natural Gas + Electricity) | T41: =(Q40+V40) -> 0
U43: © 2022 General Motors
C56: * Example from the Flir camera showing heat transfer from a trailer sitting in a dock door with door open vs closed

Sheet Compressed Air
B2: Compressed Air
B4: User Input Instructions
B5: Pink | C5: Please input data ONLY in the pink cells.
B6: Gray | C6: Please DO NOT enter any data in the gray cells. They contain formulas
B7: Green | C7: Final outputs for Treasure Map Tab
B8: Please give best estimate if the exact data is not known
B10: Section 2.1 - Pressure Reduction
B11: The industry rule of thumb is 1% energy savings for every 2 PSI reduction in pressure. Producing compressed air at lower pressure reduces the amount of work your compressors need to do per CFM of air supplied. A system pressure reduction also reduces leak rates. The key to determining if a pressure reduction is possible is to know what pressure your equipment requires, and make sure your longest run is satisfied for flow and pressure. If your longest run will potentially become starved of flow/pressure after a system pressure reduction, a receiver buffer tank can potentially be used to help satisfy the longest run.
B12: Equipment | C12: Hp | D12: Production Hrs/Yr | E12: PSI Reduction | F12: Cfm | G12: Percent Factor | H12: % system reduction | I12: Cfm Reduced | J12: HP Reduced | K12: MWh Saved | L12: Yearly Savings
F13: =C13*4 -> 0 | G13: 0.01 | H13: =(E13*0.01)/2 -> 0 | I13: =F13*H13 -> 0 | J13: =I13/4 -> 0 | K13: =((J13*0.746)*D13)/1000 -> 0 | L13: =IFERROR(K13*'Treasure Map'!$E$7,0) -> 0
F14: =C14*4 -> 0 | G14: 0.01 | H14: 0 | I14: =F14*H14 -> 0 | J14: =I14/4 -> 0 | K14: 0 | L14: =IFERROR(K14*'Treasure Map'!$E$7,0) -> 0
F15: 0 | G15: 0.01 | H15: 0 | I15: 0 | J15: 0 | K15: 0 | L15: =IFERROR(K15*'Treasure Map'!$E$7,0) -> 0
F16: 0 | G16: 0.01 | H16: 0 | I16: 0 | J16: 0 | K16: 0 | L16: =IFERROR(K16*'Treasure Map'!$E$7,0) -> 0
F17: 0 | G17: 0.01 | H17: 0 | I17: 0 | J17: 0 | K17: 0 | L17: =IFERROR(K17*'Treasure Map'!$E$7,0) -> 0
F18: 0 | G18: 0.01 | H18: 0 | I18: 0 | J18: 0 | K18: 0 | L18: =IFERROR(K18*'Treasure Map'!$E$7,0) -> 0
F19: 0 | G19: 0.01 | H19: 0 | I19: 0 | J19: 0 | K19: 0 | L19: =IFERROR(K19*'Treasure Map'!$E$7,0) -> 0
J20: Total Yearly Savings | K20: =SUM(K13:K19) -> 0 | L20: =SUM(L13:M19) -> 0
B23: Section 3.2 - Leak Reduction
B24: A facility compressed air leak rate below 20% would be considered ‘world class’. A total system leak rate of 30% is common. One way to determine leak rate, would be to look at compressed air flow (CFM) during a complete production shutdown. The CFM during shutdown, divided by your typical full production CFM rate will be your % leak rate. There is a wide array of ultrasonic leak detectors that can be used to detect and pinpoint leaks. Though, larger leaks, or accessible ones can often be located through hearing alone. Leak rate depends on system pressure, and orifice size.
B25: Equipment Name | C25: Hp | D25: Production Hrs/Yr | E25: Current leak Rate % | F25: Cfm | G25: World class leak rate | H25: Leak Reduction potential | I25: Cfm Reduced | J25: Hp Reduced | K25: MWh Saved | L25: Yearly savings
F26: =(C26*4) -> 0 | G26: 0.2 | H26: =(E26-G26) -> -0.2 | I26: =(F26*H26) -> 0 | J26: =(C26*H26) -> 0 | K26: =((J26*0.746)*D26)/1000 -> 0 | L26: =IFERROR(K26*'Treasure Map'!$E$7,0) -> 0
F27: =(C27*4) -> 0 | G27: 0.2 | H27: -0.2 | I27: =(F27*H27) -> 0 | J27: 0 | K27: =((J27*0.746)*D27)/1000 -> 0 | L27: =IFERROR(K27*'Treasure Map'!$E$7,0) -> 0
F28: 0 | G28: 0.2 | H28: -0.2 | I28: 0 | J28: 0 | K28: =((J28*0.746)*D28)/1000 -> 0 | L28: =IFERROR(K28*'Treasure Map'!$E$7,0) -> 0
F29: 0 | G29: 0.2 | H29: -0.2 | I29: 0 | J29: 0 | K29: 0 | L29: =IFERROR(K29*'Treasure Map'!$E$7,0) -> 0
F30: 0 | G30: 0.2 | H30: -0.2 | I30: 0 | J30: 0 | K30: 0 | L30: =IFERROR(K30*'Treasure Map'!$E$7,0) -> 0
F31: 0 | G31: 0.2 | H31: -0.2 | I31: 0 | J31: 0 | K31: 0 | L31: =IFERROR(K31*'Treasure Map'!$E$7,0) -> 0
F32: 0 | G32: 0.2 | H32: -0.2 | I32: 0 | J32: 0 | K32: 0 | L32: =IFERROR(K32*'Treasure Map'!$E$7,0) -> 0
J33: Total Yearly Savings | K33: =SUM(K26:K32) -> 0 | L33: =SUM(L26:L32) -> 0
J35: © 2022 General Motors

Sheet Energy Star Appliances
B2: Energy Star Appliances
B4: User Input Instructions
B5: Pink | C5: Please input data ONLY in the pink cells.
B6: Gray | C6: Please DO NOT enter any data in the gray cells. They contain formulas
B7: Green | C7: Final outputs for Treasure Map Tab
B8: Please give best estimate if the exact data is not known
B10: Section 3.1 - Vending Machine Conversion to Energy Star
B11: Complete the below vending machine energy usage data. To calculate the potential savings, fill in the KWh/day energy usage of your current vending machine and the total quantity vending machines of that type. Calculate for multiple models if needed. Refrigerated vending machines operate 24 hours per day, seven days a week. In addition to consuming 2,500 to 4,400 kilowatt-hours (KWh) of energy per year, they add to cooling loads in the spaces they occupy. At average electricity costs of aboutUS$0.10/KWh, annual operating costs can range from $250 to $440.
B12: Reference
B13: Quantity of refrigerated machines | C13: Old Vending Machine kWh/day | D13: EPA Energy Star Vending Machine kWh/day | E13: Savings kWh Daily
D14: 5 | E14: =(C14-D14)*B14 -> 0
D15: Savings (MWh) | E15: =(E14*365)/1000 -> 0
D16: Savings (USD) | E16: =IFERROR(E15*'Treasure Map'!E7,0) -> 0
B21: Section 3.2 - Water Cooler Conversion to Energy Star
B22: Complete the below water cooler energy usage data. To calculate the potential savings, fill in the Kwh/day energy usage of your current water cooler and the total quantity water coolers of that type. Calculate for multiple models if needed. The calculator on the left is for conversion from an old hot/cold water cooler to a new Energy Star hot/cold. The calculator on the right is for conversion from an old hot/cold water cooler to a new Energy Star cook/cold cooler. If you do not require hot water, the cook (room temperature) and cold cooler is significantly more efficient. Use one calculator of the other, not both when totaling savings.
B24: Replace with Hot/Cold Water Cooler | H24: Replace with Cook/Cold Water Cooler
B25: Quantity of Water Coolers | C25: Old Water Cooler kWh/day | D25: EPA Energy Star Hot/Cold Water Cooler kWh/day | E25: Savings Daily | H25: Quantity of Water Coolers | I25: Old Water Cooler kWh/day | J25: EPA Energy Star Cook/Cold Water Cooler kWh/day | K25: Savings Daily
D26: 0.7 | E26: =(C26-D26)*B26 -> 0 | J26: 0.13 | K26: =(I26-J26)*H26 -> 0
D27: Savings (MWh) | E27: =(E26*365)/1000 -> 0 | J27: Savings (MWh) | K27: =(K26*365)/1000 -> 0
D28: Savings (USD) | E28: =IFERROR(E27*'Treasure Map'!E7,0) -> 0 | J28: Savings (USD) | K28: =IFERROR(K27*'Treasure Map'!E7,0) -> 0
B33: Section 3.3 - Refrigerator Conversion to Energy Star
B34: Complete the below refrigerator energy usage data. To calculate the potential savings, fill in the KWh/day energy usage of your current refrigerator and the total quantity refrigerators of that type. Calculate for multiple models if needed. Refrigerated vending machines operate 24 hours per day, seven days a week. In addition to consuming 2,500 to 4,400 kilowatt-hours (KWh) of energy per year, they add to cooling loads in the spaces they occupy. At average electricity costs of aboutUS$0.10/kWh, annual operating costs can range from $250 to $440.
B36: Standard Size Refrigerator | H36: Compact Size Refrigerator
B37: Quantity of Refrigerators | C37: Old Refrigerator kWh/day | D37: EPA Energy Star Refrigerator kWh/day | E37: Savings Daily | H37: Quantity of Refrigerators | I37: Old Refrigerator kWh/day | J37: EPA Energy Star Refrigerator kWh/day | K37: Savings Daily
D38: 1.369863014 | E38: =(C38-D38)*B38 -> 0 | J38: 0.7205479452 | K38: =(I38-J38)*H38 -> 0
D39: Savings (MWh) | E39: =(E38*365)/1000 -> 0 | J39: Savings (MWh) | K39: =(K38*365)/1000 -> 0
D40: Savings (USD) | E40: =IFERROR(E39*'Treasure Map'!E7,0) -> 0 | J40: Savings (USD) | K40: =IFERROR(K39*'Treasure Map'!E7,0) -> 0
B45: Section 3.4 - Coffee Maker Conversion to Energy Star
B46: Complete the below coffee maker energy usage data. To calculate the potential savings, fill in the Watts/Gal energy usage of your current coffee maker and the total quantity coffee makers of that type. Calculate for multiple models if needed. Refrigerated vending machines operate 24 hours per day, seven days a week. In addition to consuming 2,500 to 4,400 kilowatt-hours (kWh) of energy per year, they add to cooling loads in the spaces they occupy. At average electricity costs of aboutUS$0.10/kWh, annual operating costs can range from $250 to $440.
B48: Quantity of Coffee Makers | C48: Old Coffee Maker Brewing Wattage | D48: Hours Used Per Day | E48: Old Coffee Maker Idle Wattage | F48: Idle Used Per Day | G48: Old Coffee Maker kWh/day | H48: EPA Energy Star Coffee Maker Brewing kWh/day | I48: EPA Energy Star Coffee Maker Idle kWh/day | J48: EPA Energy Star Coffee Maker Total kWh/day | K48: Savings Daily
F49: =24-D49 -> 24 | G49: =((C49/1000)*D49)+((E49/1000)*F49) -> 0 | H49: =(520/1000)*D49 -> 0 | I49: =(0.5/1000)*F49 -> 0.012 | J49: =H49+I49 -> 0.012 | K49: =(G49-J49)*B49 -> 0
J50: Savings (MWh) | K50: =(K49*365)/1000 -> 0
J51: Savings (USD) | K51: =IFERROR(K50*'Treasure Map'!E7,0) -> 0
J53: © 2022 General Motors

Sheet Fans
B2: Fans
B4: User Input Instructions
B5: Pink | C5: Please input data ONLY in the pink cells.
B6: Gray | C6: Please DO NOT enter any data in the gray cells. They contain formulas
B7: Green | C7: Final outputs for Treasure Map Tab
B8: Please give best estimate if the exact data is not known
B10: Section 4.1 - Pedestal Fans Timing Sensor
B11: This measure is most prudent for locations where personnel are not disciplined about manually turning off their fans at the end of production shifts. If users are good about turning them off, this measure may not be worth pursuing.
B12: Number of Fans | C12: Kw | D12: Hrs/Day off | E12: Days/Year | F12: Fan running hours | G12: Cost per Fan Timer Installed (USD) | H12: Total Cost (USD) | I12: Yearly Savings MWh | J12: Yearly Savings (USD)
F13: =(D13*E13) -> 0 | G13: 63.2 | H13: =G13*B13 -> 0 | I13: =(B13*F13)*(C13/1000) -> 0 | J13: =IFERROR('Treasure Map'!$E$7*I13,"") -> 0
F14: =(D14*E14) -> 0 | G14: 63.2 | H14: =G14*B14 -> 0 | I14: =(B14*F14)*(C14/1000) -> 0 | J14: =IFERROR('Treasure Map'!$E$7*I14,"") -> 0
F15: 0 | G15: 63.2 | H15: =G15*B15 -> 0 | I15: 0 | J15: =IFERROR('Treasure Map'!$E$7*I15,"") -> 0
F16: 0 | G16: 63.2 | H16: =G16*B16 -> 0 | I16: 0 | J16: =IFERROR('Treasure Map'!$E$7*I16,"") -> 0
G17: Total Yearly Savings | I17: =SUM(I13:I16) -> 0 | J17: =SUM(J13:J16) -> 0
G18: Total Cost | H18: =SUM(H13:H16) -> 0
I20: © 2022 General Motors

Sheet Groove Belt
B2: Groove Belt
B4: User Input Instructions
B5: Pink | C5: Please input data ONLY in the pink cells.
B6: Gray | C6: Please DO NOT enter any data in the gray cells. They contain formulas
B7: Green | C7: Final outputs for Treasure Map Tab
B8: Please give best estimate if the exact data is not known
B10: Section 5.1
B11: Perhaps it would be best pursued with regular PM work. Don’t buy the cheapest belt on the market, cheaper belts tend to slip more causing increase ware and energy cost.
B20: HorsePower HP | C20: Quantity | D20: kW | E20: Production Hrs/Year | F20: MWh | G20: 2% Percent Factor | H20: Yearly Savings (MWh) | I20: Yearly Savings (USD)
D21: =B21*0.746 -> 0 | F21: =(C21*D21*E21)/1000 -> 0 | G21: 0.02 | H21: =(F21*G21) -> 0 | I21: =H21*IFERROR('Treasure Map'!$E$7,0) -> 0
D22: =B22*0.746 -> 0 | F22: =(C22*D22*E22)/1000 -> 0 | G22: 0.02 | H22: =(F22*G22) -> 0 | I22: =H22*IFERROR('Treasure Map'!$E$7,0) -> 0
D23: 0 | F23: 0 | G23: 0.02 | H23: 0 | I23: =H23*IFERROR('Treasure Map'!$E$7,0) -> 0
D24: 0 | F24: 0 | G24: 0.02 | H24: 0 | I24: =H24*IFERROR('Treasure Map'!$E$7,0) -> 0
F25: Total Yearly Savings | H25: =SUM(H21:H24) -> 0 | I25: =IFERROR(SUM(I21:I24),0) -> 0
H27: © 2022 General Motors
D40: `

Sheet HVAC
B2: HVAC Temperature Setbacks
B4: User Input Instructions
B5: Pink | C5: Please input data ONLY in the pink cells.
B6: Gray | C6: Please DO NOT enter any data in the gray cells. They contain formulas
B7: Green | C7: Final outputs for Treasure Map Tab
B8: Please give best estimate if the exact data is not known
B10: Section - 6.1 Production - Temperature/Hour Reduction
B11: You can save as much as 10% a year on heating and cooling by simply turning your thermostat back 7°-10° F of r8 hours a day from normal setting. The percentage of savings from setback is greater for buildings in milder climates than those in severe climates
B12: Reference Data
B13: HVAC often represents a large opportunity depending on the existing conditions. Things like managing setpoints, scheduling, and setback modes are simple things that can be used to reduce energy consumption. More sophisticated measures would be things like VFD control on fans, and ensuring you aren’t over-ventilating your site (refer to ASHRAE 62.1 for Ventilation and Acceptable Indoor Air Quality). Making sure process exhaust fans are powered off during non-production is also an easy way to lower HVAC expenses - any exhausted air must be made-up with AHUs. Performing an air-balance analysis of the facility can help identify if/when an over or under-ventilating situation is occurring. It would be wise to hire a third party professional consultant to perform an analysis like this.
B15: Cfm | C15: Temp In °F | D15: Temp Out (Avg of HDD °F) | E15: Heating Degree days (HDD) | F15: Run Hours per day | G15: Delta T (°F) | H15: Btu/ Hr | I15: MWh/Hr | J15: MWh per year | K15: Yealy Savings (USD)
G16: =C16-D16 -> 0 | H16: =B16*1.08*(C16-D16) -> 0 | I16: =(H16*0.00029307107)/1000 -> 0 | J16: =I16*E16*F16 -> 0 | K16: =IFERROR('Treasure Map'!$E$8*J16,0) -> 0
G17: =C17-D17 -> 0 | H17: =B17*1.08*(C17-D17) -> 0 | I17: =(H17*0.00029307107)/1000 -> 0 | J17: =I17*E17*F17 -> 0 | K17: =IFERROR('Treasure Map'!$E$8*J17,0) -> 0
H18: Total Yearly Savings | J18: =(J16-J17) -> 0 | K18: =IFERROR(K16-K17,0) -> 0
J20: © 2022 General Motors

Sheet LED Lighting
B2: Lighting LED
B4: User Input Instructions
B5: Pink | C5: Please input data ONLY in the pink cells.
B6: Gray | C6: Please DO NOT enter any data in the gray cells. They contain formulas
B7: Green | C7: Final outputs for Treasure Map Tab
B8: Please give best estimate if the exact data is not known
B10: Section 7.1 - Light LED Upgrade
B11: High Intensity Discharge lighting (such as High Pressure Sodium and Metal Halide) often used in low-bay, high-bay, and exterior applications, use ~500% more power than an LED equivalent. Compared to Fluorescent lighting, equivalent LEDs will often use one third, to a quarter of the power. Depending on the application, the addition of occupancy sensor or daylight harvesting controls can reduce fixture run-time hours by 30% - providing additional savings.
B12: Existing Lighting
B13: Equipment | C13: Location | D13: Fixture Quantity | E13: Lamps per Fixture | F13: Watts per Lamp | G13: Watts per Fixture (ignores BF) | H13: Production Hrs/Yr | I13: Yearly MWh | J13: Yearly cost (USD)
G14: =F14*E14 -> 0 | I14: =((G14*D14*H14)/1000)/1000 -> 0 | J14: =IFERROR(I14*'Treasure Map'!$E$7,0) -> 0
G15: =F15*E15 -> 0 | I15: =((G15*D15*H15)/1000)/1000 -> 0 | J15: =IFERROR(I15*'Treasure Map'!$E$7,0) -> 0
G16: 0 | I16: 0 | J16: =IFERROR(I16*'Treasure Map'!$E$7,0) -> 0
G17: 0 | I17: 0 | J17: =IFERROR(I17*'Treasure Map'!$E$7,0) -> 0
G18: 0 | I18: 0 | J18: =IFERROR(I18*'Treasure Map'!$E$7,0) -> 0
H19: Total | I19: =SUM(I14:I18) -> 0 | J19: =SUM(J14:J18) -> 0
B22: Replacement LED Lighting
B23: Equipment | C23: Location | D23: Fixture Quantity | E23: Lamps per Fixture | F23: Watts per Fixture | G23: Watts per Lamp | H23: Production Hrs/Yr | I23: Yearly MWh | J23: Yearly cost (USD)
G24: =F24*E24 -> 0 | I24: =((G24*D24*H24)/1000)/1000 -> 0 | J24: =IFERROR(I24*'Treasure Map'!$E$7,0) -> 0
G25: =F25*E25 -> 0 | I25: =((G25*D25*H25)/1000)/1000 -> 0 | J25: =IFERROR(I25*'Treasure Map'!$E$7,0) -> 0
G26: 0 | I26: 0 | J26: =IFERROR(I26*'Treasure Map'!$E$7,0) -> 0
G27: 0 | I27: 0 | J27: =IFERROR(I27*'Treasure Map'!$E$7,0) -> 0
G28: 0 | I28: 0 | J28: =IFERROR(I28*'Treasure Map'!$E$7,0) -> 0
H29: Total | I29: =SUM(I24:I28) -> 0 | J29: =SUM(J24:J28) -> 0
H31: Totals
H32: Equipment | I32: Yearly MWh | J32: Yearly cost (USD)
H33: Current | I33: =(I19) -> 0 | J33: =(J19) -> 0
H34: LED Future | I34: =(I29) -> 0 | J34: =(J29) -> 0
H35: Total Yearly Savings | I35: =(I33-I34) -> 0 | J35: =(J33-J34) -> 0
H37: © 2022 General Motors

Sheet Delamping
B2: Delamping
B4: User Input Instructions
B5: Pink | C5: Please input data ONLY in the pink cells.
B6: Gray | C6: Please DO NOT enter any data in the gray cells. They contain formulas
B7: Green | C7: Final outputs for Treasure Map Tab
B8: Please give best estimate if the exact data is not known
B10: Section - 8.1 - Lowering light intensities
B11: Delamping refers to the process of removing or reducing the number of lamps or light fixtures in a given space. It involves intentionally reducing the lighting levels by removing unnecessary or excessive lighting fixtures. Delamping is often done to save energy, reduce electricity costs, and improve lighting efficiency. It is typically carried out after a thorough assessment of the lighting needs and requirements of the space to ensure that the remaining lighting is still adequate for the intended use. It is not recommended to decrease fixture density in an area with a low ceiling above production equipment with lots of lighting obstructions (steel, duct, piping, etc.). This is a simple method to save energy when existing light levels are deemed too high. A more thorough lighting study should be performed to ensure adequate light intensity for the space type, which could yield additional energy savings from overall lux reductions.
B17: Name of Area | C17: Number of fixtures | D17: Lamps/fixture | E17: Wattage/lamp | F17: Proposed lamps/fixture | G17: Operating Hrs/Year | H17: Lighting kW | I17: MWh/Year | J17: Total Cost (USD)
B18: Example: Loading dock | C18: 200 | D18: 4 | E18: 28 | F18: 2 | G18: 6000 | H18: =C18*((D18*E18)-(F18*E18))/1000 -> 11.2 | I18: =(H18*G18)/1000 -> 67.2 | J18: =IFERROR('Treasure Map'!$E$7*I18,0) -> 0
H19: =C19*((D19*E19)-(F19*E19))/1000 -> 0 | I19: =(H19*G19)/1000 -> 0 | J19: =IFERROR('Treasure Map'!$E$7*I19,0) -> 0
H20: 0 | I20: 0 | J20: =IFERROR('Treasure Map'!$E$7*I20,0) -> 0
H21: 0 | I21: 0 | J21: =IFERROR('Treasure Map'!$E$7*I21,0) -> 0
H22: 0 | I22: 0 | J22: =IFERROR('Treasure Map'!$E$7*I22,0) -> 0
H23: 0 | I23: 0 | J23: =IFERROR('Treasure Map'!$E$7*I23,0) -> 0
H24: 0 | I24: 0 | J24: =IFERROR('Treasure Map'!$E$7*I24,0) -> 0
G25: Total Yearly Savings | I25: =SUM(I19:I24) -> 0 | J25: =IFERROR(SUM(J19:J24),0) -> 0
H27: © 2022 General Motors

Sheet Power Strips - Occupancy Sensor
B2: Occupancy Sensors
B4: User Input Instructions
B5: Pink | C5: Please input data ONLY in the pink cells.
B6: Gray | C6: Please DO NOT enter any data in the gray cells. They contain formulas
B7: Green | C7: Final outputs for Treasure Map Tab
B8: Please give best estimate if the exact data is not known
B10: Section 9.1 - Office Space Occupancy Sensors / Power Strip Usage
B11: - Insert the different pieces of equipment that use energy in your office spaces and work stations that are plugged in - Insert the estimated amount of hours that each device/equipment is on during a given day - Insert the hours which the devices will be used for after purchasing the Power Strip with Occupancy Sensors (i.e. 6 hrs) - Insert the number of cubicles/work stations that contain the device listed in the Column B - Assuming 23 days in an average month
B13: Cost of Power Strips
B14: Total Power Strips
B15: Cost of Power Strip | C15: 0
B16: Total Cost | C16: =C14*C15 -> 0
B18: Equipment | C18: Watts of Equipment | D18: Number of Pieces of Equipment | E18: Days Running per Yr | F18: Hours Running Current | G18: Hours Running Future | H18: MWh Per Year Current Usage | I18: MWh Per Year Future Usage | J18: Annual Savings MWh | K18: Total Yearly Savings (USD)
B19: PC | H19: =((C19*F19*D19*E19)/1000)/1000 -> 0 | I19: =((C19*G19*D19*E19)/1000)/1000 -> 0 | J19: =H19-I19 -> 0 | K19: =IFERROR(J19*'Treasure Map'!$E$7,0) -> 0
B20: Monitor | H20: =((C20*F20*D20*E20)/1000)/1000 -> 0 | I20: =((C20*G20*D20*E20)/1000)/1000 -> 0 | J20: =H20-I20 -> 0 | K20: =IFERROR(J20*'Treasure Map'!$E$7,0) -> 0
B21: Desk Lamp | H21: 0 | I21: 0 | J21: 0 | K21: =IFERROR(J21*'Treasure Map'!$E$7,0) -> 0
B22: Fan | H22: 0 | I22: 0 | J22: 0 | K22: =IFERROR(J22*'Treasure Map'!$E$7,0) -> 0
B23: Heater | H23: 0 | I23: 0 | J23: 0 | K23: =IFERROR(J23*'Treasure Map'!$E$7,0) -> 0
H24: 0 | I24: 0 | J24: 0 | K24: =IFERROR(J24*'Treasure Map'!$E$7,0) -> 0
H25: 0 | I25: 0 | J25: 0 | K25: =IFERROR(J25*'Treasure Map'!$E$7,0) -> 0
H26: 0 | I26: =((C26*G26*D26*E26)/1000)/1000 -> 0 | J26: 0 | K26: =IFERROR(J26*'Treasure Map'!$E$7,0) -> 0
I27: Totals | J27: =SUM(J19:J26) -> 0 | K27: =SUM(K19:K26) -> 0
B29: Section 9.2 - Work Station Occupancy Sensors / Power Strip Usage
B30: - Insert the different pieces of equipment that use energy in your office spaces and work stations that are plugged in - Insert the estimated amount of hours that each device/equipment is on during a given day - Insert the hours which the devices will be used for after purchasing the Power Strip with Occupancy Sensors (i.e. 6 hrs) - Insert the number of cubicles/work stations that contain the device listed in the Column B - Assuming 23 days in an average month
B32: Cost of Power Strips
B33: Total Power Strips
B34: Cost of Power Strip | C34: 0
B35: Total Cost | C35: =C33*C34 -> 0
B36: Equipment | C36: Watts of Equipment | D36: Number of Pieces of Equipment | E36: Days Running per Yr | F36: Hours Running Current | G36: Hours Running Future | H36: MWh Per Year Current Usage | I36: MWh Per Year Future Usage | J36: Annual Savings (MWh) | K36: Total Yearly Savings (USD)
B37: PC | H37: =((C37*F37*D37*E37)/1000)/1000 -> 0 | I37: =((C37*G37*D37*E37)/1000)/1000 -> 0 | J37: =H37-I37 -> 0 | K37: =IFERROR(J37*'Treasure Map'!$E$7,0) -> 0
B38: Monitor | H38: =((C38*F38*D38*E38)/1000)/1000 -> 0 | I38: =((C38*G38*D38*E38)/1000)/1000 -> 0 | J38: =H38-I38 -> 0 | K38: =IFERROR(J38*'Treasure Map'!$E$7,0) -> 0
B39: Desk Lamp | H39: 0 | I39: 0 | J39: 0 | K39: =IFERROR(J39*'Treasure Map'!$E$7,0) -> 0
B40: Fan | H40: 0 | I40: 0 | J40: 0 | K40: =IFERROR(J40*'Treasure Map'!$E$7,0) -> 0
B41: Heater | H41: 0 | I41: 0 | J41: 0 | K41: =IFERROR(J41*'Treasure Map'!$E$7,0) -> 0
H42: 0 | I42: 0 | J42: 0 | K42: =IFERROR(J42*'Treasure Map'!$E$7,0) -> 0
H43: 0 | I43: 0 | J43: 0 | K43: =IFERROR(J43*'Treasure Map'!$E$7,0) -> 0
H44: 0 | I44: 0 | J44: 0 | K44: =IFERROR(J44*'Treasure Map'!$E$7,0) -> 0
I45: Totals | J45: =SUM(J37:J44) -> 0 | K45: =SUM(K37:K44) -> 0
I47: © 2022 General Motors

Sheet Machine Sleep
B2: Machine/Equipment Sleep
B4: User Input Instructions
B5: Pink | C5: Please input data ONLY in the pink cells.
B6: Gray | C6: Please DO NOT enter any data in the gray cells. They contain formulas
B7: Green | C7: Final outputs for Treasure Map Tab
B8: Please give best estimate if the exact data is not known
B10: Section 10.1 - Machine Sleep
B11: Look at opportunities to use Equipment logic to add sleep when machine is not needed
B12: Equipment | C12: Quantity of Equipment | D12: Equipment Load kW | E12: Production Hours/Yr | F12: Product cycle time (Min) | G12: Equipment Cycle time (Min) | H12: Time savings (Min) | I12: Energy savings per machine (MWh per year) | J12: Total Machine set Yearly Savings (MWh) | K12: Yearly Savings (USD)
H13: =(F13-G13) -> 0 | I13: =((H13/60)*D13*E13)/1000 -> 0 | J13: =(C13*I13) -> 0 | K13: =IFERROR('Treasure Map'!$E$7*J13,0) -> 0
H14: =(F14-G14) -> 0 | I14: =((H14/60)*D14*E14)/1000 -> 0 | J14: =(C14*I14) -> 0 | K14: =IFERROR('Treasure Map'!$E$7*J14,0) -> 0
H15: 0 | I15: 0 | J15: 0 | K15: =IFERROR('Treasure Map'!$E$7*J15,0) -> 0
H16: 0 | I16: 0 | J16: 0 | K16: =IFERROR('Treasure Map'!$E$7*J16,0) -> 0
I17: Total Yearly Savings | J17: =SUM(J13:J16) -> 0 | K17: =SUM(K13:K16) -> 0
J19: © 2022 General Motors

Sheet Panel Cooler
B2: Panel Coolers
B4: User Input Instructions
B5: Pink | C5: Please input data ONLY in the pink cells.
B6: Gray | C6: Please DO NOT enter any data in the gray cells. They contain formulas
B7: Green | C7: Final outputs for Treasure Map Tab
B8: Please give best estimate if the exact data is not known
B9: Reference Data
B10: SpectraCool™ G52 Key Features:
B11: Nominal cooling capacity 8000 & 12000 BTUs/Hr
B12: Single Unit 72 Deg F
B13: 1 Deg F = 1% reduction
B16: Section 11.1 - Panel Cooler Temperature Settings
B17: Sometimes panel coolers are maintained at a lower setpoint than is required by the equipment. Be sure to check the equipment cooling requirements before raising setpoints. The last thing we want is production interruptions caused by overheating faults, or thermal damage to panel components. Ideal Panel temperature is 35°C or 95°F
B18: # Panel Coolers | C18: BTU's/Hr | D18: Hrs/ Year | E18: Original SP (°F) | F18: Revised SP (°F) | G18: MWh | H18: Difference (For 1% improvement) | I18: Yearly Savings (MWh) | J18: Yearly Savings (USD)
C19: 8000 | F19: 95 | G19: =(C19*D19*0.000293)/1000 -> 0 | H19: =(F19-E19)*0.01 -> 0.95 | I19: =(G19*H19)*B19 -> 0 | J19: =IFERROR('Treasure Map'!$E$7*I19,"") -> 0
C20: 12000 | F20: 95 | G20: =(C20*D20*0.000293)/1000 -> 0 | H20: =(F20-E20)*0.01 -> 0.95 | I20: =(G20*H20)*B20 -> 0 | J20: =IFERROR('Treasure Map'!$E$7*I20,"") -> 0
F21: 95 | G21: 0 | H21: 0.95 | I21: 0 | J21: =IFERROR('Treasure Map'!$E$7*I21,"") -> 0
F22: 95 | G22: 0 | H22: 0.95 | I22: 0 | J22: =IFERROR('Treasure Map'!$E$7*I22,"") -> 0
G23: Total yearly savings | I23: =SUM(I19:I20) -> 0 | J23: =SUM(J19:J20) -> 0
H25: © 2022 General Motors

Sheet VFDs
B2: VFDs
B4: User Input Instructions
B5: Pink | C5: Please input data ONLY in the pink cells.
B6: Gray | C6: Please DO NOT enter any data in the gray cells. They contain formulas
B7: Green | C7: Final outputs for Treasure Map Tab
B8: Please give best estimate if the exact data is not known
B10: Section 12.1 - VFD replacement/addition
B11: Pumps, Fans, Compressors, and ConveyorsWhen pump and fan motors are oversized for the load (more flow or pressure than is required), there may be an opportunity to add a variable frequency drive (VFD). By utilizing a VFD, the speed of the motor, and by extension, the fan/pump can be reduced to better match system demand. According to the Affinity Laws, power is proportional to the cube of the change in motor speed. So for example, reducing motor speed by 50% (30 Hz vs 60 Hz), will reduce motor power by 87.5%. Though less dramatic speed reductions are more common (45 or 50 hz), VFDs can reduce electric usage and extend equipment life. Most Totally Enclosed, Fan-Cooled motors should not operate below 15 Hz, as they will not be able to adequately cool themselves. Always refer to the motor OEM to determine safe operating speeds for a given motor. It is also important to make sure the motor can handle the addition of a VFD inverter. The addition of grounding rings on a motor can help reduce the possibility bearing damage that can be caused by voltage spikes from VFD use. Various control schemes can also be utilized, such that the VFD will automatically adjust to changes in system demand. It is always best to consult with a professional before installing a VFD. Inappropriate use of a VFD can result in some or all of the end uses being starved for flow/pressure, motor damage, and fire.
G12: Current conditions | J12: Proposed | M12: Electric savings
B13: Equipment | C13: Hp | D13: Production Hrs/Yr | E13: Load Factor % | F13: Motor Efficiency % | G13: Motor Hz | H13: Demand kW | I13: Consumption kWh/Yr | J13: Motor Hz | K13: Demand kW | L13: Consumption kWh/Yr | M13: Yearly MWh Savings | N13: Yearly Savings (USD)
E14: 0.75 | H14: =IFERROR((C14*0.746*E14)/F14,"") ->  | I14: =IFERROR(H14*D14,"") ->  | J14: =(G14*0.85) -> 0 | K14: =IFERROR(H14*(J14/G14)^3,"") ->  | L14: =IFERROR(K14*D14,"") ->  | M14: =IFERROR((I14-L14)/1000,"") ->  | N14: =IFERROR(M14*'Treasure Map'!$E$7,0) -> 0
E15: 0.75 | H15: =IFERROR((C15*0.746*E15)/F15,"") ->  | I15: =IFERROR(H15*D15,"") ->  | J15: =(G15*0.85) -> 0 | K15: =IFERROR(H15*(J15/G15)^3,"") ->  | L15: =IFERROR(K15*D15,"") ->  | M15: =IFERROR((I15-L15)/1000,"") ->  | N15: =IFERROR(M15*'Treasure Map'!$E$7,0) -> 0
E16: 0.75 | J16: 0 | M16: =IFERROR((I16-L16)/1000,"") ->  | N16: =IFERROR(M16*'Treasure Map'!$E$7,0) -> 0
K17: Total savings | M17: =SUM(M14:M16) -> 0 | N17: =SUM(N14:N16) -> 0
L19: © 2022 General Motors
C24: 50
C25: 60

Sheet Ice Machines
B2: Ice Machines: Air vs Water Cooled
B4: User Input Instructions
B5: Pink | C5: Please input data ONLY in the pink cells.
B6: Gray | C6: Please DO NOT enter any data in the gray cells. They contain formulas
B7: Green | C7: Final outputs for Treasure Map Tab
B8: Please give best estimate if the exact data is not known
B10: Section 13.1 - Ice Machine Conversion to Air Cooled
B11: Verify if your ice machine is air cooled or water cooled using the instructions below. If you have water cooled machines, Complete the below ice machine water usage data. To calculate the potential savings, fill in the gallons of ice produced per day of your current ice machine and the total quantity of water cooled ice machines. Ice machines operate 24 hours per day, seven days a week. Water cooled ice machines use between 100-200 gallons of water per 100 lbs of ice produced compared to air cooled which use 20 gallons of water per 100 lbs of ice. Also, Manitowoc estimates that water cooled ice machines dischare 5 GPM during ice production cycles.
I12: How to Verify if Your Ice Machine is Water or Air Cooled
B14: Quantity of Refrigerated Machines | C14: # of Employees Using Ice Machines | D14: Old Water Cooled Ice Machine Gallons of cooling per 100 lbs of ice produced | E14: Ice Produced per Day (lbs per day) | F14: Air Cooled Ice Machine Water Usage (Gal) | G14: Savings Daily (Gal) | H14: Savings Yearly (Gal) | I14: Step 1: Locate the ice maker serial number. Should be on sticker/plate on the back of the machine.
E15: =(C15*0.25) -> 0 | F15: =E15/8.34 -> 0 | G15: =(D15-F15)*B15 -> 0 | H15: =(G15)*(52*5) -> 0 | I15: Step 2: Identify the last letter of the serial number. It should be an A or W. (See picture above for guidance)
F16: Savings (M3) | G16: =G15/264.172 -> 0 | H16: =H15/264.172 -> 0 | I16: Step 3: If the letter is a W, it is water cooled. Procede with the calculator on the right.
F17: Savings (USD) | G17: =IFERROR('Site Information'!G25*G16,0) -> 0 | H17: =IFERROR('Site Information'!G25*H16,0) -> 0 | I17: If the letter is an A, it is air cooled and no futher calculations are needed.
L19: © 2022 General Motors

Sheet Water Leaks
B2: Water Leaks
B4: User Input Instructions
B5: Pink | C5: Please input data ONLY in the pink cells.
B6: Gray | C6: Please DO NOT enter any data in the gray cells. They contain formulas
B7: Green | C7: Final outputs for Treasure Map Tab
B8: Please give best estimate if the exact data is not known
B10: Section 14.1 - Water Leaks by Flow
B11: Calculate the diameter of the orifice (inches) and the pressure in the pipe. Use those values in the chart below to calculate the rate & cost of the leak.
B13: # of Orifices of this Pressure/Size | C13: Pressure in Pipe (PSI) | D13: Diameter of Orifice, in. | E13: Flow GPM | F13: Flow M3/hr | G13: Flow M3/Day | H13: Cost Per Day ($) | I13: Annual Usage (M3) | J13: Annual Cost ($)
C14: 30 | D14: 0.015625 | E14: =0.0255*B14 -> 0 | F14: =E14*60/264 -> 0 | G14: =F14*24 -> 0 | H14: ='Treasure Map'!$E$9*G14 -> 0 | I14: =G14*365 -> 0 | J14: =H14*365 -> 0
C15: 30 | D15: 0.03125 | E15: 0 | F15: 0 | G15: 0 | H15: ='Treasure Map'!$E$9*G15 -> 0 | I15: 0 | J15: 0
C16: 30 | D16: 0.0625 | E16: 0 | F16: 0 | G16: 0 | H16: ='Treasure Map'!$E$9*G16 -> 0 | I16: 0 | J16: 0
C17: 30 | D17: 0.125 | E17: 0 | F17: 0 | G17: 0 | H17: ='Treasure Map'!$E$9*G17 -> 0 | I17: 0 | J17: 0
C18: 30 | D18: 0.1875 | E18: 0 | F18: 0 | G18: 0 | H18: ='Treasure Map'!$E$9*G18 -> 0 | I18: 0 | J18: 0
C19: 30 | D19: 0.25 | E19: 0 | F19: 0 | G19: 0 | H19: ='Treasure Map'!$E$9*G19 -> 0 | I19: 0 | J19: 0
C20: 30 | D20: 0.375 | E20: 0 | F20: 0 | G20: 0 | H20: ='Treasure Map'!$E$9*G20 -> 0 | I20: 0 | J20: 0
C21: 30 | D21: 0.5 | E21: 0 | F21: 0 | G21: 0 | H21: ='Treasure Map'!$E$9*G21 -> 0 | I21: 0 | J21: 0
C22: 30 | D22: 0.625 | E22: 0 | F22: 0 | G22: 0 | H22: ='Treasure Map'!$E$9*G22 -> 0 | I22: 0 | J22: 0
C23: 30 | D23: 0.75 | E23: 0 | F23: 0 | G23: 0 | H23: ='Treasure Map'!$E$9*G23 -> 0 | I23: 0 | J23: 0
C24: 30 | D24: 0.875 | E24: 0 | F24: 0 | G24: 0 | H24: ='Treasure Map'!$E$9*G24 -> 0 | I24: 0 | J24: 0
C25: 30 | D25: 1 | E25: 0 | F25: 0 | G25: 0 | H25: ='Treasure Map'!$E$9*G25 -> 0 | I25: 0 | J25: 0
C26: 50 | D26: 0.015625 | E26: 0 | F26: 0 | G26: 0 | H26: ='Treasure Map'!$E$9*G26 -> 0 | I26: 0 | J26: 0
C27: 50 | D27: 0.03125 | E27: 0 | F27: 0 | G27: 0 | H27: ='Treasure Map'!$E$9*G27 -> 0 | I27: 0 | J27: 0
C28: 50 | D28: 0.0625 | E28: 0 | F28: 0 | G28: 0 | H28: ='Treasure Map'!$E$9*G28 -> 0 | I28: 0 | J28: 0
C29: 50 | D29: 0.125 | E29: 0 | F29: 0 | G29: 0 | H29: ='Treasure Map'!$E$9*G29 -> 0 | I29: 0 | J29: 0
C30: 50 | D30: 0.1875 | E30: 0 | F30: 0 | G30: 0 | H30: ='Treasure Map'!$E$9*G30 -> 0 | I30: 0 | J30: 0
C31: 50 | D31: 0.25 | E31: 0 | F31: 0 | G31: 0 | H31: ='Treasure Map'!$E$9*G31 -> 0 | I31: 0 | J31: 0
C32: 50 | D32: 0.375 | E32: 0 | F32: 0 | G32: 0 | H32: ='Treasure Map'!$E$9*G32 -> 0 | I32: 0 | J32: 0
C33: 50 | D33: 0.5 | E33: 0 | F33: 0 | G33: 0 | H33: ='Treasure Map'!$E$9*G33 -> 0 | I33: 0 | J33: 0
C34: 50 | D34: 0.625 | E34: 0 | F34: 0 | G34: 0 | H34: ='Treasure Map'!$E$9*G34 -> 0 | I34: 0 | J34: 0
C35: 50 | D35: 0.75 | E35: 0 | F35: 0 | G35: 0 | H35: ='Treasure Map'!$E$9*G35 -> 0 | I35: 0 | J35: 0
C36: 50 | D36: 0.875 | E36: 0 | F36: 0 | G36: 0 | H36: ='Treasure Map'!$E$9*G36 -> 0 | I36: 0 | J36: 0
C37: 50 | D37: 1 | E37: 0 | F37: 0 | G37: 0 | H37: ='Treasure Map'!$E$9*G37 -> 0 | I37: 0 | J37: 0
C38: 100 | D38: 0.015625 | E38: 0 | F38: 0 | G38: 0 | H38: ='Treasure Map'!$E$9*G38 -> 0 | I38: 0 | J38: 0
C39: 100 | D39: 0.03125 | E39: 0 | F39: 0 | G39: 0 | H39: ='Treasure Map'!$E$9*G39 -> 0 | I39: 0 | J39: 0
C40: 100 | D40: 0.0625 | E40: 0 | F40: 0 | G40: 0 | H40: ='Treasure Map'!$E$9*G40 -> 0 | I40: 0 | J40: 0
C41: 100 | D41: 0.125 | E41: 0 | F41: 0 | G41: 0 | H41: ='Treasure Map'!$E$9*G41 -> 0 | I41: 0 | J41: 0
C42: 100 | D42: 0.1875 | E42: 0 | F42: 0 | G42: 0 | H42: ='Treasure Map'!$E$9*G42 -> 0 | I42: 0 | J42: 0
C43: 100 | D43: 0.25 | E43: 0 | F43: 0 | G43: 0 | H43: ='Treasure Map'!$E$9*G43 -> 0 | I43: 0 | J43: 0
C44: 100 | D44: 0.375 | E44: 0 | F44: 0 | G44: 0 | H44: ='Treasure Map'!$E$9*G44 -> 0 | I44: 0 | J44: 0
C45: 100 | D45: 0.5 | E45: 0 | F45: 0 | G45: 0 | H45: ='Treasure Map'!$E$9*G45 -> 0 | I45: 0 | J45: 0
C46: 100 | D46: 0.625 | E46: 0 | F46: 0 | G46: 0 | H46: ='Treasure Map'!$E$9*G46 -> 0 | I46: 0 | J46: 0
C47: 100 | D47: 0.75 | E47: 0 | F47: 0 | G47: 0 | H47: ='Treasure Map'!$E$9*G47 -> 0 | I47: 0 | J47: 0
C48: 100 | D48: 0.875 | E48: 0 | F48: 0 | G48: 0 | H48: ='Treasure Map'!$E$9*G48 -> 0 | I48: 0 | J48: 0
C49: 100 | D49: 1 | E49: 0 | F49: 0 | G49: 0 | H49: ='Treasure Map'!$E$9*G49 -> 0 | I49: 0 | J49: 0
B50: Total: | E50: =SUM(E14:E49) -> 0 | F50: 0 | G50: 0 | H50: 0 | I50: 0 | J50: 0
I52: © 2022 General Motors

Sheet Visualizations
C3: Savings Dashboard | G3: Grand Total Electricity Savings (Mwh) Per Year | J3: Grand Total Water Savings (M3) Per Year | M3: Grand Total Methane/Propane (Mwh) Per Year | Q3: Total Scope 1 Emissions Saved (Mt CO2e) Per Year | R3: Total Scope 2 Emissions Saved (Mt CO2e) Per Year
C4: Total Cost | E4: Total Savings | G4: Electricity Savings (MWh) | H4: =$C$13 -> 0 | J4: Water Savings (M3) | K4: =$C$19 -> 0 | M4: Natural Gas Savings (MWh) | N4: =$E$13 -> 0 | P4: Savings (Mt CO2e) | Q4: =$E$19 -> 0 | R4: =$C$28 -> 0
C5: =$K$45 -> 0 | E5: =$M$45 -> 0 | G5: Electricity Usage (MWh) | H5: ='Site Information'!$E$23 -> 0 | J5: Water Usage (M3) | K5: ='Site Information'!$E$25 -> 0 | M5: Natural Gas Usage (MWh) | N5: ='Site Information'!$E$24 -> 0 | P5: Emissions (Mt CO2e) | Q5: =SUM('Site Information'!U5:U16)/1000000 -> 0 | R5: =SUM('Site Information'!T5:T16)/1000000 -> 0
G6: Usage - Savings | H6: =H5-H4 -> 0 | J6: Usage - Savings | K6: =K5-K4 -> 0 | M6: Usage - Savings | N6: =N5-N4 -> 0 | P6: Usage - Savings | Q6: =Q5-Q4 -> 0 | R6: =R5-R4 -> 0
C12: Electricity Savings MWh | E12: Natural Gas Savings
C13: =$O$45 -> 0 | E13: =$Q$45 -> 0
C17: Water Savings (M3) | E17: Scope 1 Emissions (Mt CO2e)
C19: =$P$45 -> 0 | E19: =$S$45 -> 0
C26: Scope 2 Emissions (Mt CO2e)
C28: =$R$45 -> 0
B44: Summary & Cost | K44: Grand Total Cost (USD) | M44: Grand Total Savings (USD) Per Year | N44: Total Payback Period (Years) | O44: Grand Total Electricity Savings (MWh) Per Year | P44: Grand Total Water Savings (M3) Per Year | Q44: Grand Total Methane/Propane Savings (Mwh) Per Year | R44: Grand Total Scope 2 Emissions Saved (Mt CO2e) Per Year | S44: Grand Total Scope 1 Emissions Saved (Mt CO2e) Per Year
K45: =SUBTOTAL(9,K47:K65) -> 0 | M45: =SUBTOTAL(9,M47:M65) -> 0 | N45: =IFERROR(K45/M45,"") ->  | O45: =SUBTOTAL(9,O47:O65) -> 0 | P45: =SUBTOTAL(9,P47:P65) -> 0 | Q45: =SUBTOTAL(9,Q47:Q65) -> 0 | R45: =SUBTOTAL(9,R47:R65) -> 0 | S45: =SUBTOTAL(9,S47:S65) -> 0
B46: Ref. No. | C46: Title | E46: Current State | G46: Future State | H46: Equipment | J46: Energy Source | K46: Total Cost (USD) | M46: Total Savings (USD) | N46: Payback (Years) | P46: Water (M3) | Q46: Propane/Methane (MWh) | R46: Scope 2 Emissions Saved (Mt CO2e) | S46: Scope 1 Emissions Saved (Mt CO2e)
B47: 1.1 | C47: Building Envelope Leaks | E47: Door leaks or Dock doors left open during idle truck loading | G47: Fixed leaks and close doors when Trailer is not being processed | H47: Doors | J47: Electricity & Gas | K47: =IFERROR(,0) -> 0 | M47: =IFERROR('Building Envelope Leaks'!$T$41,0) -> 0 | N47: =IFERROR(K47/M47,"-") -> - | O47: =('Building Envelope Leaks'!$V$39) -> 0 | Q47: =('Building Envelope Leaks'!$Q$39) -> 0 | R47: =O47*'Site Information'!$T$3 -> 0 | S47: =Q47*'Site Information'!$U$3 -> 0
B48: =B47+1 -> 2.1 | C48: Compressed Air Pressure Reduction | E48: Current PSI | G48: Reduction in Psi (full system or by decoupling heavy loaded items) | H48: Compressed Air | J48: Electricity | M48: =IFERROR('Compressed Air'!$L$20,0) -> 0 | N48: - | O48: =('Compressed Air'!$K$20) -> 0 | R48: =O48*'Site Information'!$T$3 -> 0 | S48: =Q48*'Site Information'!$U$3 -> 0
B49: =B48+0.1 -> 2.2 | C49: Compressed Air Leaks | E49: Air leaks are > 20% in a system | G49: Reduce air leaks to world class 20% | H49: Compressed Air | J49: Electricity | K49: =IFERROR(,0) -> 0 | M49: =('Compressed Air'!$L$33) -> 0 | N49: - | O49: =('Compressed Air'!$K$33) -> 0 | R49: =O49*'Site Information'!$T$3 -> 0 | S49: =Q49*'Site Information'!$U$3 -> 0
B50: 3.1 | C50: Energy Star - Vending Machines | E50: Vending Machine (older models) non-Energy Star | G50: Request and change out dated vending machines to "Energy Star" | H50: Vending | J50: Electricity | K50: 0 | M50: =IFERROR('Energy Star Appliances'!$E$16,0) -> 0 | N50: - | O50: =('Energy Star Appliances'!$E$15) -> 0 | R50: =O50*'Site Information'!$T$3 -> 0 | S50: =Q50*'Site Information'!$U$3 -> 0
B51: 3.2 | C51: Energy Star - Water Cooler | E51: Water Cooler (older models) non-Energy Star | G51: Request and change out dated water cooler to "Energy Star" | H51: Water Cooler | J51: Electricity | K51: 0 | M51: =IFERROR(SUM('Energy Star Appliances'!$E$28,'Energy Star Appliances'!$K$28),0) -> 0 | N51: - | O51: =SUM('Energy Star Appliances'!$E$27,'Energy Star Appliances'!$K$27) -> 0 | R51: =O51*'Site Information'!$T$3 -> 0 | S51: =Q51*'Site Information'!$U$3 -> 0
B52: 3.3 | C52: Energy Star - Refrigerator | E52: Refrigerator (older models) non-Energy Star | G52: Request and change out dated refrigerator to "Energy Star" | H52: Refrigerator | J52: Electricity | K52: 0 | M52: =SUM('Energy Star Appliances'!$E$40,'Energy Star Appliances'!$K$40) -> 0 | N52: - | O52: =SUM('Energy Star Appliances'!$E$39,'Energy Star Appliances'!$K$39) -> 0 | R52: =O52*'Site Information'!$T$3 -> 0 | S52: =Q52*'Site Information'!$U$3 -> 0
B53: 3.4 | C53: Energy Star - Coffee Maker | E53: Coffee Maker (older models) non-Energy Star | G53: Request and change out dated coffee maker to "Energy Star" | H53: Coffee Maker | J53: Electricity | K53: =IFERROR(,0) -> 0 | M53: ='Energy Star Appliances'!$K$51 -> 0 | N53: - | O53: =('Energy Star Appliances'!$K$50) -> 0 | R53: =O53*'Site Information'!$T$3 -> 0 | S53: =Q53*'Site Information'!$U$3 -> 0
B54: 4.1 | C54: Fans | E54: No Timer switch | G54: Timing switch installed | H54: Fans | J54: Electricity | K54: =IFERROR(Fans!$H$18,0) -> 0 | M54: =IFERROR(Fans!$J$17,0) -> 0 | N54: - | O54: =(Fans!$I$17) -> 0 | R54: =O54*'Site Information'!$T$3 -> 0 | S54: =Q54*'Site Information'!$U$3 -> 0
B55: 5.1 | C55: Groove Belts | E55: Straight belts | G55: Grooved belts | H55: Motors | J55: Electricity | K55: =IFERROR(,0) -> 0 | M55: =IFERROR('Groove Belt'!$I$25,0) -> 0 | N55: - | O55: ='Groove Belt'!$H$25 -> 0 | R55: =O55*'Site Information'!$T$3 -> 0 | S55: =Q55*'Site Information'!$U$3 -> 0
B56: 6.1 | C56: HVAC Set back thermostats (CDD) | E56: Current Thermostat temperature | G56: Reduce thermostat temperate by Delta x° | H56: Heating/Cooling | J56: Electricity & Gas | M56: =IFERROR(HVAC!$K$18,"") -> 0 | N56: - | Q56: =(HVAC!$J$18) -> 0 | R56: =O56*'Site Information'!$T$3 -> 0 | S56: =Q56*'Site Information'!$U$3 -> 0
B57: 7.1 | C57: LED Lighting | E57: Fluorescent lights | G57: LED lights | H57: Lighting | J57: Electricity | K57: 0 | M57: =IFERROR('LED Lighting'!$J$35,0) -> 0 | N57: - | O57: =('LED Lighting'!$I$35) -> 0 | R57: =O57*'Site Information'!$T$3 -> 0 | S57: =Q57*'Site Information'!$U$3 -> 0
B58: 8.1 | C58: Delamping | E58: Current light candle | G58: Reduction in candle light lumin on any fixtures that can support | H58: Lighting | J58: Electricity | K58: 0 | M58: =IFERROR(Delamping!$J$25,0) -> 0 | N58: - | O58: =(Delamping!$I$25) -> 0 | R58: =O58*'Site Information'!$T$3 -> 0 | S58: =Q58*'Site Information'!$U$3 -> 0
B59: 9.1 | C59: Occupancy Sensors in Office Stations (Power Strips) | E59: Office cubicles have devices on throughout the day | G59: Devices in office spaces turn off when team member is not present | H59: Multi-equip | J59: Electricity | K59: =IFERROR('Power Strips - Occupancy Sensor'!$C$16,0) -> 0 | M59: =IFERROR('Power Strips - Occupancy Sensor'!$K$27,0) -> 0 | N59: - | O59: ='Power Strips - Occupancy Sensor'!$J$27 -> 0 | R59: =O59*'Site Information'!$T$3 -> 0 | S59: =Q59*'Site Information'!$U$3 -> 0
B60: 9.2 | C60: Occupancy Sensors in Workstation Cubicles (Power Strips) | E60: Work stations are always on during production hours | G60: Items in work areas turn off when operator is not present | H60: Multi-equip | J60: Electricity | K60: =IFERROR('Power Strips - Occupancy Sensor'!$C$35,0) -> 0 | M60: =IFERROR('Power Strips - Occupancy Sensor'!$K$45,0) -> 0 | N60: - | O60: ='Power Strips - Occupancy Sensor'!$J$45 -> 0 | R60: =O60*'Site Information'!$T$3 -> 0 | S60: =Q60*'Site Information'!$U$3 -> 0
B61: 10.1 | C61: Machine Sleep | E61: Machine continuously runs in-between cycles | G61: Items are slept or reduced during inactivity in between cycles | H61: Machinery | J61: Electricity | K61: =IFERROR(,0) -> 0 | M61: =IFERROR('Machine Sleep'!$K$17,0) -> 0 | N61: - | O61: =('Machine Sleep'!$J$17) -> 0 | R61: =O61*'Site Information'!$T$3 -> 0 | S61: =Q61*'Site Information'!$U$3 -> 0
B62: 11.1 | C62: Panel Coolers | E62: Current temperature under 35° C or 95° F | G62: Temp set at 35°C/95°F | H62: Panel Coolers | J62: Electricity | M62: =IFERROR('Panel Cooler'!$J$23,0) -> 0 | N62: - | O62: =('Panel Cooler'!$I$23) -> 0 | R62: =O62*'Site Information'!$T$3 -> 0 | S62: =Q62*'Site Information'!$U$3 -> 0
B63: 12.1 | C63: VFDs Pumps and Fans | E63: Motors run at 100% when ever in use | G63: Variable Frequency Drive added to reduce speed during times it is not needed | H63: Motors | J63: Electricity | K63: =IFERROR(,0) -> 0 | M63: =IFERROR(VFDs!$N$17,0) -> 0 | N63: - | O63: =(VFDs!$M$62) -> 0 | R63: =O63*'Site Information'!$T$3 -> 0 | S63: =Q63*'Site Information'!$U$3 -> 0
B64: 13.1 | C64: Air cooled Ice machines | E64: Water cooled Ice Machine | G64: Air Cooled Ice Machine | H64: Ice Machine | J64: Water | K64: 0 | M64: =IFERROR('Ice Machines'!$H$17,0) -> 0 | N64: - | P64: ='Ice Machines'!$H$16 -> 0 | R64: =O64*'Site Information'!$T$3 -> 0 | S64: =Q64*'Site Information'!$U$3 -> 0
B65: 14.1 | C65: Water dripping calculations - (i.e. facets, spickets, piping) | E65: water leaking (dripping water) | G65: Eliminate leaks | H65: Water systems | J65: Water | K65: 0 | M65: =IFERROR('Water Leaks'!$J$50,0) -> 0 | N65: - | P65: ='Water Leaks'!$I$50 -> 0 | R65: =O65*'Site Information'!$T$3 -> 0 | S65: =Q65*'Site Information'!$U$3 -> 0

Sheet Treasure Hunt Form
B2: Energy Star Treasure Hunts
B3: Find the Treasure in Your Facility Campaign
B5: GM wants to empower you to examine your energy use more closely!
B6: Energy Star is a voluntary program of the U.S. Environmental Protection Agency (EPA) that helps businesses and individuals save money and protect our climate through superior energy efficiency.
B7: Energy Treasure Hunts are one best practice that many Energy Star partner organizations have adopted to identify no- and low-cost savings opportunities and build stronger energy teams.
B8: The Energy Treasure Map Tool allows organizations to uncover hidden savings through self-guided exercises. Users will also earn Energy Treasure Hunt participation credit.
B9: Sharing detailed information about your energy savings efforts via the tool will boost your CDP score and offset costs incurred through sustainability assessment platforms (i.e. EcoVadis, M2030).
B11: What to do?
B12: Complete the form below to share a summary of your savings and earn recognition for your participation.
B13: Note: If your organization is submitting multiple Energy Treasure Hunts, a separate line item is required for each site.
B14: Select the "Send Email to Energy Star" button above to open an email in a separate window.
B15: Copy and paste the table below into the email and submit the completed form to treasurehunt@energystar.gov.
B16: Note: Total attachments may not exceed 100MB in a single email.
B17: For any questions about this form, email treasurehunt@energystar.gov.
B18: gpscsustainability@gm.com
B20: Sponsors and participants that submit their summary findings will:
B21: Be featured on the Energy Star Treasure Hunt website in the "What others have done" section.
B22: Receive a printable certificate noting contribution.
B23: Showcase the importance of energy efficiency and inspire others to make a difference!
B25: Useful Links and Email Addresses:
B26: http://www.energystar.gov/treasurehunt
B27: treasurehunt@energystar.gov
B28: gpscsustainability@gm.com
B30: *Indicates a required field.
C31: 1. Organization name* | D31: 2. Contact name* | E31: 3. Contact title | F31: 4. Contact email* | G31: 5a. Site name* | H31: 5b. Street address* | I31: 5c. City* | J31: 5d. State* | K31: 5e. ZIP Code* | L31: 6. Is the facility a commercial building or industrial facility?* If it is a commercial building, please answer questions 7a-c. If it is an industrial building, please skip to question 8. | M31: 7a. Commercial building type | N31: 7b. Building square footage (sq. ft.) | O31: 7c. Is the site benchmarked in Portfolio Manager? | P31: 8. Industrial facility type | Q31: 9. Start date of treasure hunt* | R31: 10. Total potential annual energy savings identified during the hunt (Source kBtu)* | S31: 11a. Approximately how many opportunities were identified during the hunt? | T31: 11b. Top 3 energy-saving measures identified (e.g., lighting left on in five conference rooms, six steam leaks detected, incorrect set points) | U31: 12. What percentage (%) of the facility’s total energy use would the treasure hunt findings save? (calculated on source energy basis)* | V31: 13. How many people participated? | W31: 14. How did you hear about treasure hunts? (e.g., trade association, utility, region, etc.) | X31: 15. Would you be willing to participate in a case study about your treasure hunt, if requested? | Y31: 16. Company logo (insert filename of logo attached to submission email) | Z31: 17. Photos of hunt (insert filenames of photos attached to submission email)
B32: 1 | C32: =Index!G6 -> <Insert Org Name> | D32: =Index!G14 -> <Insert Contact Name> | F32: =Index!G15 -> <Insert Contact Email> | G32: =Index!G7 -> <Insert Site Name> | H32: =Index!G10 -> <Insert Street Address> | I32: =Index!G11 -> <Insert City> | J32: =Index!G12 -> MI | K32: =Index!G13 -> <Insert Zip Code> | L32: =Index!G9 -> Industrial | Q32: =Index!G5 -> <Insert Date> | R32: =(SUM(Visualizations!H4+Visualizations!N4))*3412.8 -> 0 | U32: =IFERROR(((Visualizations!H4+Visualizations!N4)/(Visualizations!H5+Visualizations!N5)),0) -> 0
B33: 2
B34: 3
B35: 4
B36: 5
B37: 6
B38: 7
B39: 8
B40: 9
B41: 10
B42: 11
B43: 12
B44: 13
B45: 14
B46: 15
B47: 16
B48: 17
B49: 18
B50: 19
B51: 20
B52: 21
B53: 22
B54: 23
B55: 24
B56: 25
B57: 26
B58: 27
B59: 28
B60: 29
B61: 30
B62: 31
B63: 32
B64: 33
B65: 34
B66: 35
B67: 36
B68: 37
B69: 38
B70: 39
B71: 40
B72: 41
B73: 42
B74: 43
B75: 44
B76: 45
B77: 46
B78: 47
B79: 48
B80: 49
B81: 50
Z83: © 2022 General Motors

Sheet Conversion Factors
A2: # | B2: Calculation | C2: Conversion | E2: # | F2: Abbreviation | G2: Description
A3: 1 | B3: Multiply by 8.314 | C3: pounds in a gallon | E3: 1 | F3: gpm | G3: gallons per minute
A4: =A3+1 -> 2 | B4: Divide by 12 | C4: inches to feet | E4: =E3+1 -> 2 | F4: WWTP | G4: wastewater treatment plant
A5: =A4+1 -> 3 | B5: Multiply by 7.381 | C5: cubic feet into gallons | E5: =E4+1 -> 3 | F5: gph | G5: gallons per hour
A6: 4 | B6: Multiply by 0.00378541 | C6: gallons to cubic meters | E6: 4 | F6: mgd | G6: million gallons per day
E7: 5 | F7: Btu/h | G7: british thermal unit per hour
F8: M3 / gal | G8: cubic meters per gallon
A10: UNIT CONVERSION FACTORS
C11: (Unless otherwise indicated, conversion factors are from Ref. 1, inside jacket cover.)
B12: From | C12: To | D12: Multiply By | F12: From | G12: To | H12: Multiply By | J12: From | K12: To | L12: Multiply By | N12: From | O12: To | P12: Multiply By
B14: Temperature | F14: Distance | J14: Force | N14: Pressure
B15: =CHAR(176)&"K" -> °K | C15: =CHAR(176)&"R" -> °R | D15: =9/5 -> 1.8 | F15: feet | G15: inches | H15: 12 | J15: Definition: 1 Newton (N) = 1 kg-m/s2 | N15: Def.: 1 N/m2 = 1 pascal (Pa)
D16: Add | F16: yards | G16: feet | H16: 3 | J16: lbf | K16: N | L16: 4.4482 | N16: atm | O16: lbf/in2 | P16: 14.696
B17: =CHAR(176)&"F" -> °F | C17: =CHAR(176)&"R" -> °R | D17: 459.67 | F17: meters | G17: feet | H17: 3.2808 | N17: atm | O17: N/m2 | P17: 101325
B18: =CHAR(176)&"C" -> °C | C18: =CHAR(176)&"K" -> °K | D18: 273.15 | F18: meters | G18: inches | H18: 39.37 | N18: atm | O18: bars | P18: 1.01325
F19: inches | G19: cm | H19: 2.54 | N19: psi | O19: inches H2O | P19: 27.70725836
B20: Time | F20: statute miles | G20: feet | H20: 5280 | N20: atm | O20: mm Hg | P20: 760
B21: years | C21: months | D21: 12 | F21: statute miles | G21: yards | H21: 1760 | N21: inches Hg | O21: psia | P21: 0.49115407
B22: years | C22: weeks | D22: 52 | F22: statute miles | G22: kilometers | H22: 1.61 | N22: lbf/ft2 | O22: lbf/in2 | P22: 144
B23: years | C23: days | D23: 365 | F23: nautical miles | G23: yards | H23: 2025 | N23: bar | O23: N/m2 | P23: 100000
B24: years | C24: hours | D24: =D23*D25 -> 8760 | N24: lbf/in2 | O24: Pa | P24: 6894.8
B25: days | C25: hours | D25: 24
B26: days | C26: minutes | D26: =D25*D27 -> 1440
B27: hours | C27: minutes | D27: 60
B28: minutes | C28: seconds | D28: 60
B32: Mass | F32: Area | J32: Energy & Work | N32: Flow
B33: short tons | C33: lbm | D33: 2000 | F33: yd2 | G33: in2 | H33: 1296 | J33: Btu | K33: ft-lbf | L33: 778.17
B34: long tons | C34: lbm | F34: ft2 | G34: in2 | H34: 144 | J34: kWhr | K34: Btu | L34: 3412.142
B35: metric tons | C35: kg | D35: 1000 | F35: ft2 | G35: cm2 | H35: 929.0304 | J35: kJ | K35: kcal | L35: 4.1868
B36: kg | C36: lbm | D36: 2.2046 | F36: acre | G36: ft2 | H36: 43560 | J36: Refr. Ton-hrs | K36: kWhr | L36: =12000/L34 -> 3.516852464
B37: lbm | C37: grams | D37: 453.54 | F37: m2 | G37: ft2 | H37: =H17^2 -> 10.76364864 | J37: ft-lbf | K37: Joule | L37: 1.35582
B38: lbm | C38: grains | D38: 7000 | F38: mile2 | G38: acre | H38: 639.9974 | J38: kJ | K38: kcal | L38: 4.1868
J39: kWhr | K39: Joule | L39: 3600000
J40: Btu | K40: Joule | L40: 1055.1
B49: Density | F49: Volume | J49: Power (Energy Transfer Rate) | N49: Viscosity
F50: in3 | G50: cm3 | H50: 16.387 | J50: hp | K50: kW | L50: 0.7457 | N50: Poise | O50: lbf-s/ft2 | P50: 0.00209
F51: ft3 | G51: in3 | H51: 1728 | J51: hp | K51: ft-lbf/sec | L51: 550 | N51: Poise | O51: lbm/ft-s | P51: 0.0672
F52: ft3 | G52: liter | H52: 28.31685 | J52: hp | K52: Btu/hr | L52: 2545 | N52: lbf-s/ft2 | O52: lbm/ft-s | P52: 32.174
F53: m3 | G53: ft3 | H53: 35.31467 | J53: kW | K53: Btu/hr | L53: 3412.142 | N53: lbm/ft-s | O53: Poise | P53: 14.87
F54: gallons | G54: ml | H54: 3785.4 | J54: Boiler hp | K54: Btu/hr | L54: 33475.35
F55: gallons | G55: in3 | H55: 231 | J55: Refr. tons | K55: Btu/hr | L55: 12000
F56: gallons | G56: ft3 | H56: 0.13368 | J56: Clg. Twr. Ton | K56: Btu/hr | L56: 15000
F57: MMgal | G57: Mcf | H57: =1000000*H56/1000 -> 133.68
F58: m3 | G58: gallons | H58: 264
F66: Velocity | J66: Chemistry | N66: Miscellaneous
F67: ft/sec | G67: mile/hr | H67: 0.6818182 | J67: Mcal/kgmole | K67: Btu/lbmole | L67: 1800 | N67: Angular Measures
F68: ft/min | G68: meter/sec | H68: 0.00508 | N68: radians | O68: degrees | P68: =180/PI() -> 57.29577951
F69: mile/hr | G69: km/hr | H69: 1.6093
F70: knot | G70: mile/hr | H70: 1.150779 | N70: Pump & Fan Power Calculation
F71: C (light) | G71: mile/sec | H71: 186282.4 | N71: cfm-inch w.c. | O71: hp | P71: =$U$39/($U$36*$I$45*$Q$68) -> 
N72: gpm-ft TDH | O72: hp | P72: =$M$73/($I$45*$Q$68) -> 
N85: © 2022 General Motors

Sheet Education Material (hidden)
B2: # | C2: Topic | D2: Link to more information
B3: 1 | C3: Heating & Cooling Degree Day (deg F) | D3: https://www.weather.gov/key/climate_heat_cool#:~:text=If%20the%20temperature%20mean%20is,result%20is%20Heating%20Degree%20Days.&text=Because%20the%20result%20is%20below,F%20%3D%2036%20Heating%20Degree%20Days.
B4: 2 | C4: Boiler Water Diagram | D4: https://www.cfm.va.gov/til/sDetail/Div23HVACSteam/SD232111-04.pdf
B5: 3 | C5: Cooling Tower | D5: https://www.coolingtowerproducts.com/blog/how-cooling-towers-work-diagram-pictures-2015.htm
B6: 4 | C6: Textile WWTP | D6: https://core.ac.uk/download/pdf/35338582.pdf
B7: 5 | C7: Psychrometric Chart | D7: http://www.flycarpet.net/en/PsyOnline
B8: 6 | C8: Steam Table | D8: https://www.tlv.com/global/US/steam-theory/how-to-read-a-steam-table.html
B9: 7 | C9: Cooling Tower Evaporation | D9: https://www.chemengonline.com/cooling-towers-estimate-evaporation-loss-and-makeup-water-requirements/#:~:text=As%20air%20rises%20inside%20the,is%20lost%20due%20to%20evaporation.
B10: 8 | C10: REA Cooling Tower Water Tool | D10: http://www.reahvac.com/tools/cooling-tower-make-water-flow-calculation/
B11: 9 | C11: Swamp Cooler | D11: https://home.howstuffworks.com/home-improvement/heating-and-cooling/swamp-cooler.htm
B12: 10 | C12: DoE:Cooling Towers: Understanding Key Components of Cooling Towers and How to Improve Water Efficiency | D12: https://www.energy.gov/sites/prod/files/2013/10/f3/waterfs_coolingtowers.pdf
B13: 11 | C13: Wastewater Technology Fact Sheet Oxidation Ditches | D13: https://www3.epa.gov/npdes/pubs/oxidation_ditch.pdf
B14: 12 | C14: Wastewater Technology Fact Sheet Fine Bubble Aeration | D14: https://www3.epa.gov/npdes/pubs/fine.pdf
B15: 13 | C15: Recommended Lighting levels | D15: https://www.noao.edu/education/QLTkit/ACTIVITY_Documents/Safety/LightLevels_outdoor+indoor.pdf
B16: 14 | C16: Wastewater Clarifier Performance | D16: https://www.thewastewaterblog.com/single-post/2016/10/22/Wastewater-Clarifier-Performance#:~:text=The%20weir%20overflow%20rate%20is,GFD%20represents%20gallons%20per%20day
B17: 15 | C17: Thermostats | D17: https://www.energy.gov/energysaver/thermostats
C18: DOE Tips Sheets | D18: Tip Sheets by System | Department of Energy
D20: © 2022 General Motors

Sheet E-factors
A1: Emissions Factors
B2: Canada Source | D2: Emission Factors and Reference Values - Canada.ca | J2: All Canada S2 converted from g CO2e/kWh | N2: All Canada S1 converted from g CO2/m3
B3: Source | C3: https://www.epa.gov/egrid/power-profiler#/ | I3: Created: | J3: 2023-01-30 | N3: All US S1 converted from million MT CO2 emissions from natural gas & MMcf natural gas consumption by state
B4: 3. State Output Emission Rates (eGRID2021)
B5: State | C5: Total output emission rates
C6: (lb/MWh) | J6: Scope 2 Factor | K6: Scope 1 Factor | AA6: Table 2. 2021 State energy-related carbon dioxide emissions by fuel
C7: CO2 | D7: CH4 | E7: N2O | F7: CO2e | G7: Annual NOX | H7: Ozone Season NOX | I7: SO2 | J7: CO2e (MT/MWh) | K7: CO2e (MT/MWh)
B8: AK | C8: 920 | D8: 0.075 | E8: 0.01 | F8: 925 | G8: 6.1 | H8: 6.2 | I8: 0.453 | J8: =F8*(1/2204.6) -> 0.4195772476 | K8: 0.7885403396 | AB8: million metric tons of carbon dioxide | AG8: shares
B9: AL | C9: 750.8 | D9: 0.055 | E9: 0.008 | F9: 754.5 | G9: 0.2 | H9: 0.2 | I9: 0.134 | J9: 0.3422389549 | K9: 0.1932945954 | AA9: State | AB9: Coal | AC9: Petroleum | AD9: Natural Gas | AE9: Total | AG9: Coal | AH9: Petroleum | AI9: Natural Gas | AK9: MMcf | AL9: Conversion | AM9: Factor
B10: AR | C10: 1086.9 | D10: 0.091 | E10: 0.013 | F10: 1093.1 | G10: 0.6 | H10: 0.6 | I10: 1.157 | J10: 0.4958269074 | K10: 0.1857205389 | AA10: AK | AB10: 1.8 | AC10: 17.5 | AD10: 19.6 | AE10: 38.9 | AG10: 0.046 | AH10: 0.449 | AI10: 0.505 | AK10: 84804 | AL10: =AK10*1000*0.2931 -> 24856052.4 | AM10: =(AD10*1000000)/AL10 -> 0.7885403396
B11: AZ | C11: 724.8 | D11: 0.042 | E11: 0.006 | F11: 727.6 | G11: 0.4 | H11: 0.4 | I11: 0.141 | J11: 0.330037195 | K11: 0.1928645964 | AA11: AL | AB11: 29.6 | AC11: 40.2 | AD11: 38.6 | AE11: 108.4 | AG11: 0.273 | AH11: 0.371 | AI11: 0.356 | AK11: 681321 | AL11: 199695185.1 | AM11: 0.1932945954
B12: CA | C12: 479 | D12: 0.025 | E12: 0.003 | F12: 480.5 | G12: 0.4 | H12: 0.4 | I12: 0.015 | J12: 0.2179533702 | K12: 0.1892587931 | AA12: AR | AB12: 20.7 | AC12: 22.5 | AD12: 18.8 | AE12: 62 | AG12: 0.334 | AH12: 0.363 | AI12: 0.304 | AK12: 345368 | AL12: 101227360.8 | AM12: 0.1857205389
B13: CO | C13: 1216.9 | D13: 0.113 | E13: 0.016 | F13: 1224.6 | G13: 0.6 | H13: 0.6 | I13: 0.367 | J13: 0.5554749161 | K13: 0.2367077619 | AA13: AZ | AB13: 15.4 | AC13: 42.1 | AD13: 25.6 | AE13: 83 | AG13: 0.185 | AH13: 0.507 | AI13: 0.308 | AK13: 452868 | AL13: 132735610.8 | AM13: 0.1928645964
B14: CT | C14: 515.1 | D14: 0.048 | E14: 0.006 | F14: 518.1 | G14: 0.2 | H14: 0.2 | I14: 0.034 | J14: 0.2350086183 | K14: 0.1908214373 | AA14: CA | AB14: 2.7 | AC14: 208.1 | AD14: 113.3 | AE14: 324 | AG14: 0.008 | AH14: 0.642 | AI14: 0.35 | AK14: 2042481 | AL14: 598651181.1 | AM14: 0.1892587931
B15: DC | C15: 651.7 | D15: 0.018 | E15: 0.002 | F15: 652.6 | G15: 2.9 | H15: 2.8 | I15: 0.033 | J15: 0.2960174181 | K15: 0.1927210419 | AA15: CO | AB15: 24.2 | AC15: 33.5 | AD15: 27.7 | AE15: 85.4 | AG15: 0.283 | AH15: 0.393 | AI15: 0.324 | AK15: 399256 | AL15: 117021933.6 | AM15: 0.2367077619
B16: DE | C16: 867.5 | D16: 0.04 | E16: 0.005 | F16: 870.1 | G16: 0.4 | H16: 0.4 | I16: 0.317 | J16: 0.3946747709 | K16: 0.1986846892 | AA16: CT | AB16: 0.3 | AC16: 20.1 | AD16: 16.2 | AE16: 36.6 | AG16: 0.008 | AH16: 0.55 | AI16: 0.442 | AK16: 289649 | AL16: 84896121.9 | AM16: 0.1908214373
B17: FL | C17: 834.1 | D17: 0.052 | E17: 0.007 | F17: 837.5 | G17: 0.3 | H17: 0.3 | I17: 0.168 | J17: 0.3798875079 | K17: 0.1862974002 | AA17: DC | AB17: 0 | AC17: 1 | AD17: 1.5 | AE17: 2.5 | AG17: 0 | AH17: 0.405 | AI17: 0.595 | AK17: 26555 | AL17: 7783270.5 | AM17: 0.1927210419
B18: GA | C18: 758.1 | D18: 0.064 | E18: 0.009 | F18: 762.4 | G18: 0.3 | H18: 0.3 | I18: 0.248 | J18: 0.3458223714 | K18: 0.1854785507 | AA18: DE | AB18: 0.4 | AC18: 8 | AD18: 4.6 | AE18: 13 | AG18: 0.034 | AH18: 0.614 | AI18: 0.352 | AK18: 78991 | AL18: 23152262.1 | AM18: 0.1986846892
B19: HI | C19: 1491 | D19: 0.164 | E19: 0.025 | F19: 1502.6 | G19: 4.8 | H19: 4.8 | I19: 5.519 | J19: 0.6815748889 | K19: 0.1226826625 | AA19: FL | AB19: 19.2 | AC19: 123.3 | AD19: 83.9 | AE19: 226.3 | AG19: 0.085 | AH19: 0.545 | AI19: 0.371 | AK19: 1536524 | AL19: 450355184.4 | AM19: 0.1862974002
B20: IA | C20: 768.9 | D20: 0.081 | E20: 0.012 | F20: 774.4 | G20: 0.5 | H20: 0.7 | I20: 0.802 | J20: 0.3512655357 | K20: 0.1924703822 | AA20: GA | AB20: 19.5 | AC20: 64 | AD20: 40.6 | AE20: 124.1 | AG20: 0.157 | AH20: 0.516 | AI20: 0.327 | AK20: 746821 | AL20: 218893235.1 | AM20: 0.1854785507
B21: ID | C21: 271.3 | D21: 0.009 | E21: 0.001 | F21: 272 | G21: 0.2 | H21: 0.2 | I21: 0.059 | J21: 0.1233783906 | K21: 0.1915925653 | AA21: HI | AB21: 1.2 | AC21: 16 | AD21: 0.1 | AE21: 17.3 | AG21: 0.069 | AH21: 0.923 | AI21: 0.008 | AK21: 2781 | AL21: 815111.1 | AM21: 0.1226826625
B22: IL | C22: 653 | D22: 0.063 | E22: 0.009 | F22: 657.3 | G22: 0.3 | H22: 0.3 | I22: 0.722 | J22: 0.2981493241 | K22: 0.1881389522 | AA22: IA | AB22: 25.3 | AC22: 26.3 | AD22: 21.6 | AE22: 73.1 | AG22: 0.346 | AH22: 0.359 | AI22: 0.295 | AK22: 382890 | AL22: 112225059 | AM22: 0.1924703822
B23: IN | C23: 1632.6 | D23: 0.152 | E23: 0.022 | F23: 1642.9 | G23: 1 | H23: 0.9 | I23: 0.843 | J23: 0.7452145514 | K23: 0.1894074315 | AA23: ID | AB23: 0.3 | AC23: 13.2 | AD23: 7.1 | AE23: 20.5 | AG23: 0.014 | AH23: 0.642 | AI23: 0.344 | AK23: 126434 | AL23: 37057805.4 | AM23: 0.1915925653
B24: KS | C24: 838.2 | D24: 0.095 | E24: 0.014 | F24: 844.6 | G24: 0.6 | H24: 0.6 | I24: 0.155 | J24: 0.3831080468 | K24: 0.1979552632 | AA24: IL | AB24: 49.9 | AC24: 77 | AD24: 57.4 | AE24: 184.2 | AG24: 0.271 | AH24: 0.418 | AI24: 0.311 | AK24: 1040920 | AL24: 305093652 | AM24: 0.1881389522
B25: KY | C25: 1727.1 | D25: 0.186 | E25: 0.027 | F25: 1739.8 | G25: 0.9 | H25: 0.9 | I25: 1.378 | J25: 0.7891681031 | K25: 0.2073708895 | AA25: IN | AB25: 71.7 | AC25: 49.4 | AD25: 45.3 | AE25: 166.4 | AG25: 0.431 | AH25: 0.297 | AI25: 0.272 | AK25: 815991 | AL25: 239166962.1 | AM25: 0.1894074315
B26: LA | C26: 826 | D26: 0.04 | E26: 0.006 | F26: 828.7 | G26: 0.6 | H26: 0.7 | I26: 0.738 | J26: 0.3758958541 | K26: 0.2228370258 | AA26: KS | AB26: 21 | AC26: 23.7 | AD26: 15.1 | AE26: 59.8 | AG26: 0.351 | AH26: 0.396 | AI26: 0.253 | AK26: 260252 | AL26: 76279861.2 | AM26: 0.1979552632
B27: MA | C27: 851.4 | D27: 0.129 | E27: 0.017 | F27: 859.6 | G27: 0.7 | H27: 0.6 | I27: 0.213 | J27: 0.3899120022 | K27: 0.18866046 | AA27: KY | AB27: 52.5 | AC27: 39.7 | AD27: 19.1 | AE27: 111.3 | AG27: 0.472 | AH27: 0.357 | AI27: 0.171 | AK27: 314246 | AL27: 92105502.6 | AM27: 0.2073708895
B28: MD | C28: 698.2 | D28: 0.058 | E28: 0.008 | F28: 702 | G28: 0.2 | H28: 0.2 | I28: 0.241 | J28: 0.3184251111 | K28: 0.2093709825 | AA28: LA | AB28: 9.2 | AC28: 83.7 | AD28: 95.7 | AE28: 188.6 | AG28: 0.049 | AH28: 0.444 | AI28: 0.507 | AK28: 1465240 | AL28: 429461844 | AM28: 0.2228370258
B29: ME | C29: 301 | D29: 0.124 | E29: 0.018 | F29: 309.4 | G29: 0.4 | H29: 0.4 | I29: 0.288 | J29: 0.1403429194 | K29: 0.1925977445 | AA29: MA | AB29: 0 | AC29: 34.8 | AD29: 21.3 | AE29: 56.1 | AG29: 0 | AH29: 0.621 | AI29: 0.379 | AK29: 385197 | AL29: 112901240.7 | AM29: 0.18866046
B30: MI | C30: 1003.8 | D30: 0.096 | E30: 0.014 | F30: 1010.3 | G30: 0.8 | H30: 0.8 | I30: 0.951 | J30: 0.4582690738 | K30: 0.1961076159 | AA30: MD | AB30: 6.6 | AC30: 30 | AD30: 16 | AE30: 52.6 | AG30: 0.126 | AH30: 0.57 | AI30: 0.304 | AK30: 260728 | AL30: 76419376.8 | AM30: 0.2093709825
B31: MN | C31: 826 | D31: 0.082 | E31: 0.012 | F31: 831.6 | G31: 0.6 | H31: 0.6 | I31: 0.256 | J31: 0.3772112855 | K31: 0.1946987836 | AA31: ME | AB31: 0.2 | AC31: 11.3 | AD31: 3 | AE31: 14.4 | AG31: 0.011 | AH31: 0.783 | AI31: 0.207 | AK31: 53144 | AL31: 15576506.4 | AM31: 0.1925977445
B32: MO | C32: 1636.1 | D32: 0.189 | E32: 0.027 | F32: 1649 | G32: 1.3 | H32: 1.2 | I32: 2.631 | J32: 0.7479814932 | K32: 0.1855538335 | AA32: MI | AB32: 41.6 | AC32: 56.3 | AD32: 49.9 | AE32: 147.8 | AG32: 0.282 | AH32: 0.381 | AI32: 0.337 | AK32: 868141 | AL32: 254452127.1 | AM32: 0.1961076159
B33: MS | C33: 834 | D33: 0.036 | E33: 0.005 | F33: 836.4 | G33: 0.4 | H33: 0.5 | I33: 0.143 | J33: 0.3793885512 | K33: 0.1958347708 | AA33: MN | AB33: 17.2 | AC33: 38.6 | AD33: 27.4 | AE33: 83.2 | AG33: 0.206 | AH33: 0.465 | AI33: 0.329 | AK33: 480144 | AL33: 140730206.4 | AM33: 0.1946987836
B34: MT | C34: 1045 | D34: 0.117 | E34: 0.017 | F34: 1053 | G34: 0.9 | H34: 0.8 | I34: 1.072 | J34: 0.4776376667 | K34: 0.2011835548 | AA34: MO | AB34: 59.1 | AC34: 42.5 | AD34: 15.4 | AE34: 117 | AG34: 0.505 | AH34: 0.363 | AI34: 0.132 | AK34: 283162 | AL34: 82994782.2 | AM34: 0.1855538335
B35: NC | C35: 669.5 | D35: 0.05 | E35: 0.007 | F35: 672.7 | G35: 0.4 | H35: 0.4 | I35: 0.224 | J35: 0.3051347183 | K35: 0.1857705918 | AA35: MS | AB35: 6.2 | AC35: 26.7 | AD35: 30.2 | AE35: 63.1 | AG35: 0.098 | AH35: 0.423 | AI35: 0.479 | AK35: 526140 | AL35: 154211634 | AM35: 0.1958347708
B36: ND | C36: 1340.7 | D36: 0.151 | E36: 0.022 | F36: 1351 | G36: 1.3 | H36: 1.4 | I36: 1.639 | J36: 0.61280958 | K36: 0.436137564 | AA36: MT | AB36: 11.8 | AC36: 12.2 | AD36: 4.5 | AE36: 28.5 | AG36: 0.412 | AH36: 0.428 | AI36: 0.159 | AK36: 76314 | AL36: 22367633.4 | AM36: 0.2011835548
B37: NE | C37: 1124.8 | D37: 0.13 | E37: 0.019 | F37: 1133.7 | G37: 1 | H37: 1.1 | I37: 2.174 | J37: 0.5142429466 | K37: 0.1916407167 | AA37: NC | AB37: 21.3 | AC37: 60.8 | AD37: 33.4 | AE37: 115.6 | AG37: 0.184 | AH37: 0.526 | AI37: 0.289 | AK37: 613414 | AL37: 179791643.4 | AM37: 0.1857705918
B38: NH | C38: 304 | D38: 0.063 | E38: 0.008 | F38: 308 | G38: 0.2 | H38: 0.1 | I38: 0.044 | J38: 0.1397078835 | K38: 0.1883186805 | AA38: ND | AB38: 34.7 | AC38: 11.8 | AD38: 10.1 | AE38: 56.5 | AG38: 0.613 | AH38: 0.208 | AI38: 0.179 | AK38: 79010 | AL38: 23157831 | AM38: 0.436137564
B39: NJ | C39: 480.9 | D39: 0.035 | E39: 0.004 | F39: 483.1 | G39: 0.2 | H39: 0.2 | I39: 0.046 | J39: 0.2191327225 | K39: 0.1885471774 | AA39: NE | AB39: 20.7 | AC39: 16.6 | AD39: 9.9 | AE39: 47.2 | AG39: 0.439 | AH39: 0.352 | AI39: 0.21 | AK39: 176251 | AL39: 51659168.1 | AM39: 0.1916407167
B40: NM | C40: 1134.3 | D40: 0.097 | E40: 0.014 | F40: 1140.8 | G40: 0.7 | H40: 0.7 | I40: 0.167 | J40: =F40*(1/2204.6) -> 0.5174634854 | K40: 0.3117688822 | AA40: NH | AB40: 0.3 | AC40: 9.8 | AD40: 3.2 | AE40: 13.3 | AG40: 0.023 | AH40: 0.739 | AI40: 0.238 | AK40: 57975 | AL40: 16992472.5 | AM40: 0.1883186805
B41: NV | C41: 715.1 | D41: 0.028 | E41: 0.004 | F41: 716.9 | G41: 0.5 | H41: 0.6 | I41: 0.128 | J41: 0.3251837068 | K41: 0.1892280276 | AA41: NJ | AB41: 1.2 | AC41: 51.2 | AD41: 36.7 | AE41: 89.1 | AG41: 0.014 | AH41: 0.574 | AI41: 0.412 | AK41: 664095 | AL41: 194646244.5 | AM41: 0.1885471774
B42: NY | C42: 455.3 | D42: 0.027 | E42: 0.003 | F42: 457 | G42: 0.2 | H42: 0.2 | I42: 0.038 | J42: 0.2072938402 | K42: 0.1911463258 | AA42: NM | AB42: 12.8 | AC42: 18.3 | AD42: 14.8 | AE42: 45.9 | AG42: 0.278 | AH42: 0.399 | AI42: 0.322 | AK42: 161962 | AL42: =AK42*1000*0.2931 -> 47471062.2 | AM42: =(AD42*1000000)/AL42 -> 0.3117688822
B43: OH | C43: 1208.2 | D43: 0.099 | E43: 0.014 | F43: 1214.9 | G43: 0.6 | H43: 0.5 | I43: 1.216 | J43: 0.5510750249 | K43: 0.2025590141 | AA43: NV | AB43: 3.4 | AC43: 19.9 | AD43: 16.1 | AE43: 39.4 | AG43: 0.087 | AH43: 0.504 | AI43: 0.409 | AK43: 290285 | AL43: 85082533.5 | AM43: 0.1892280276
B44: OK | C44: 753.5 | D44: 0.047 | E44: 0.006 | F44: 756.6 | G44: 0.5 | H44: 0.6 | I44: 0.412 | J44: 0.3431915087 | K44: 0.227061335 | AA44: NY | AB44: 0.5 | AC44: 83.7 | AD44: 71.8 | AE44: 156 | AG44: 0.003 | AH44: 0.537 | AI44: 0.46 | AK44: 1281571 | AL44: 375628460.1 | AM44: 0.1911463258
B45: OR | C45: 325.8 | D45: 0.015 | E45: 0.002 | F45: 326.7 | G45: 0.5 | H45: 0.5 | I45: 0.015 | J45: 0.1481901479 | K45: 0.1936737299 | AA45: OH | AB45: 54.8 | AC45: 71.4 | AD45: 67.8 | AE45: 194 | AG45: 0.283 | AH45: 0.368 | AI45: 0.349 | AK45: 1141990 | AL45: 334717269 | AM45: 0.2025590141
B46: PA | C46: 726.4 | D46: 0.049 | E46: 0.007 | F46: 729.6 | G46: 0.3 | H46: 0.3 | I46: 0.407 | J46: 0.330944389 | K46: 0.2256454104 | AA46: OK | AB46: 12.6 | AC46: 36.5 | AD46: 38.7 | AE46: 87.8 | AG46: 0.144 | AH46: 0.415 | AI46: 0.441 | AK46: 581503 | AL46: 170438529.3 | AM46: 0.227061335
B47: PR | C47: 1558 | D47: 0.081 | E47: 0.013 | F47: 1563.9 | G47: 3.2 | H47: 3 | I47: 3.284 | J47: 0.7093803865 | K47: 0.1905009984 | AA47: OR | AB47: 0.1 | AC47: 22.4 | AD47: 16 | AE47: 38.5 | AG47: 0.003 | AH47: 0.581 | AI47: 0.416 | AK47: 281860 | AL47: 82613166 | AM47: 0.1936737299
B48: RI | C48: 832.7 | D48: 0.016 | E48: 0.002 | F48: 833.6 | G48: 0.4 | H48: 0.4 | I48: 0.012 | J48: 0.3781184795 | K48: =K60 -> 0.2041027804 | AA48: PA | AB48: 45.9 | AC48: 70 | AD48: 97.6 | AE48: 213.5 | AG48: 0.215 | AH48: 0.328 | AI48: 0.457 | AK48: 1475732 | AL48: 432537049.2 | AM48: 0.2256454104
B49: SC | C49: 567 | D49: 0.05 | E49: 0.007 | F49: 570.4 | G49: 0.2 | H49: 0.2 | I49: 0.179 | J49: 0.2587317427 | K49: 0.1853383104 | AA49: RI | AB49: 0 | AC49: 5.1 | AD49: 5.6 | AE49: 10.6 | AG49: 0 | AH49: 0.477 | AI49: 0.523 | AK49: 100294 | AL49: 29396171.4 | AM49: 0.1905009984
B50: SD | C50: 302.9 | D50: 0.025 | E50: 0.004 | F50: 304.6 | G50: 0.1 | H50: 0.1 | I50: 0.074 | J50: 0.1381656536 | K50: 0.2035173074 | AA50: SC | AB50: 15.6 | AC50: 35.5 | AD50: 18.3 | AE50: 69.3 | AG50: 0.225 | AH50: 0.512 | AI50: 0.264 | AK50: 336876 | AL50: 98738355.6 | AM50: 0.1853383104
B51: TN | C51: 698.3 | D51: 0.065 | E51: 0.009 | F51: 702.6 | G51: 0.3 | H51: 0.3 | I51: 0.366 | J51: 0.3186972693 | K51: 0.1916243578 | AA51: SD | AB51: 2.1 | AC51: 8.1 | AD51: 5 | AE51: 15.2 | AG51: 0.136 | AH51: 0.534 | AI51: 0.33 | AK51: 83821 | AL51: 24567935.1 | AM51: 0.2035173074
B52: TX | C52: 856.4 | D52: 0.057 | E52: 0.008 | F52: 860.2 | G52: 0.5 | H52: 0.5 | I52: 0.654 | J52: 0.3901841604 | K52: 0.2104882835 | AA52: TN | AB52: 21.6 | AC52: 49.5 | AD52: 21.5 | AE52: 92.7 | AG52: 0.233 | AH52: 0.534 | AI52: 0.232 | AK52: 382800 | AL52: 112198680 | AM52: 0.1916243578
B53: UT | C53: 1560.5 | D53: 0.157 | E53: 0.023 | F53: 1571.2 | G53: 1.6 | H53: 1.6 | I53: 0.65 | J53: 0.7126916447 | K53: 0.2121402715 | AA53: TX | AB53: 92.8 | AC53: 325.4 | AD53: 245.3 | AE53: 663.5 | AG53: 0.14 | AH53: 0.49 | AI53: 0.37 | AK53: 3976068 | AL53: 1165385531 | AM53: 0.2104882835
B54: VA | C54: 599.2 | D54: 0.049 | E54: 0.006 | F54: 601.5 | G54: 0.2 | H54: 0.2 | I54: 0.088 | J54: 0.2728386102 | K54: 0.1938935612 | AA54: US | AB54: 1008.6 | AC54: 2247.8 | AD54: 1654.9 | AE54: 4911.2 | AG54: 0.205 | AH54: 0.458 | AI54: 0.337 | AK54: 27663493 | AL54: 8108169798 | AM54: 0.2041027804
B55: VT | C55: 36 | D55: 0.137 | E55: 0.018 | F55: 44.8 | G55: 0.2 | H55: 0.2 | I55: 0.017 | J55: 0.02032114669 | K55: 0.1799746339 | AA55: UT | AB55: 26.5 | AC55: 21.2 | AD55: 14.4 | AE55: 62.1 | AG55: 0.426 | AH55: 0.342 | AI55: 0.232 | AK55: 231592 | AL55: 67879615.2 | AM55: 0.2121402715
B56: WA | C56: 201.8 | D56: 0.017 | E56: 0.002 | F56: 203 | G56: 0.1 | H56: 0.1 | I56: 0.039 | J56: 0.09208019595 | K56: 0.2016237483 | AA56: VA | AB56: 6.5 | AC56: 54.7 | AD56: 36.8 | AE56: 98 | AG56: 0.066 | AH56: 0.559 | AI56: 0.375 | AK56: 647543 | AL56: 189794853.3 | AM56: 0.1938935612
B57: WI | C57: 1267.1 | D57: 0.117 | E57: 0.017 | F57: 1274.9 | G57: 0.5 | H57: 0.6 | I57: 0.221 | J57: 0.5782908464 | K57: 0.187464617 | AA57: VT | AB57: 0 | AC57: 4.8 | AD57: 0.7 | AE57: 5.6 | AG57: 0 | AH57: 0.87 | AI57: 0.13 | AK57: 13270 | AL57: 3889437 | AM57: 0.1799746339
B58: WV | C58: 1944.1 | D58: 0.223 | E58: 0.032 | F58: 1959.4 | G58: 1 | H58: 0.9 | I58: 1.44 | J58: 0.8887780096 | K58: 0.4720950702 | AA58: WA | AB58: 3.5 | AC58: 50.2 | AD58: 20.1 | AE58: 73.8 | AG58: 0.048 | AH58: 0.68 | AI58: 0.272 | AK58: 340125 | AL58: 99690637.5 | AM58: 0.2016237483
B59: WY | C59: 1833.9 | D59: 0.198 | E59: 0.029 | F59: 1847.4 | G59: 1.2 | H59: 1.3 | I59: 1.16 | J59: 0.8379751429 | K59: 0.3462956467 | AA59: WI | AB59: 27.5 | AC59: 35.7 | AD59: 29.3 | AE59: 92.5 | AG59: 0.297 | AH59: 0.386 | AI59: 0.316 | AK59: 533252 | AL59: 156296161.2 | AM59: 0.187464617
B60: U.S. | C60: 852.3 | D60: 0.071 | E60: 0.01 | F60: 857 | G60: 0.5 | H60: 0.5 | I60: 0.531 | J60: 0.3887326499 | K60: 0.2041027804 | AA60: WV | AB60: 60.6 | AC60: 13.4 | AD60: 14.4 | AE60: 88.4 | AG60: 0.686 | AH60: 0.152 | AI60: 0.163 | AK60: 104068 | AL60: 30502330.8 | AM60: 0.4720950702
B61: British Columbia | F61: 15 | J61: =F61*0.000001*1000 -> 0.015 | K61: =M61*0.000001/(0.0353*0.2931) -> 0.190017233 | M61: 1966 | AA61: WY | AB61: 36.1 | AC61: 10.2 | AD61: 8.3 | AE61: 54.6 | AG61: 0.661 | AH61: 0.187 | AI61: 0.152 | AK61: 81774 | AL61: 23967959.4 | AM61: 0.3462956467
B62: Alberta | F62: 540 | J62: 0.54 | K62: 0.1896306262 | M62: 1962
B63: Saskatchewan | F63: 730 | J63: 0.73 | K63: 0.185571255 | M63: 1920
B64: Manitoba | F64: 2 | J64: 0.002 | K64: 0.1850879965 | M64: 1915
B65: Ontario | F65: 30 | J65: 0.03 | K65: 0.1856679067 | M65: 1921
B66: Quebec | F66: 1.7 | J66: 0.0017 | K66: 0.1861511652 | M66: 1926
B67: New Brunswick | F67: 300 | J67: 0.3 | K67: 0.1854746033 | M67: 1919
B68: Nova Scotia | F68: 690 | J68: 0.69 | K68: 0.1854746033 | M68: 1919
B69: Prince Edward Island | F69: 300 | J69: 0.3 | K69: 0.1854746033 | M69: 1919
B70: Newfoundland and Labrador | F70: 17 | J70: 0.017 | K70: 0.1854746033 | M70: 1919
B71: Yukon | F71: 80 | J71: 0.08 | K71: 0.190017233 | M71: 1966
B72: Northwest Territories | F72: 170 | J72: 0.17 | K72: 0.190017233 | M72: 1966
B73: Nunavut | F73: 840 | J73: 0.84 | K73: 0.190017233 | M73: 1966
